Workbook

Sheet 目录
A1: 目 录
A2: 1.全市一般公共预算收入决算表
A3: 2.全市一般公共预算支出决算表
A4: 3.市本级一般公共预算收入决算表
A5: 4.市本级一般公共预算支出决算表
A6: 5.市本级一般公共预算基本支出经济分类决算数
A7: 6.市对区税收返还决算表
A8: 7.一般性转移支付决算表
A9: 8.一般公共预算专项转移支付分地区、分项目决算表
A10: 9.全市一般债务限额和余额情况表
A11: 10.全市政府性基金收入决算表
A12: 11.全市政府性基金支出决算表
A13: 12.市本级政府性基金收入决算表
A14: 13.市本级政府性基金支出决算表
A15: 14.政府性基金专项转移支付分地区、分项目决算表
A16: 15.全市专项债务限额和余额情况表
A17: 16.全市国有资本经营收入决算表
A18: 17.全市国有资本经营支出决算表
A19: 18.市本级国有资本经营收入决算表
A20: 19.市本级国有资本经营支出决算表
A21: 20.国有资本经营预算专项转移支付分地区、分项目决算表
A22: 21.全市社会保险基金收入决算表
A23: 22.全市社会保险基金支出决算表
A24: 23.市本级社会保险基金收入决算表
A25: 24.市本级社会保险基金支出决算表
A26: 25.市本级城乡居民基本养老保险基金收支决算表
A27: 26.市本级机关事业单位基本养老保险基金收支决算表
A28: 27.市本级职工基本医疗保险(含生育保险)基金收支决算表
A29: 28.市本级城乡居民基本医疗保险基金收支决算表
A30: 29.市本级工伤保险基金收支决算表
A31: 30.市本级失业保险基金收支决算表
A32: 31.地方政府债券转贷情况表
A33: 32.全市地方政府、还本付息决算表
A34: 33.市本级三公经费支出情况表
A35: 34.全市一般债券安排使用表
A36: 35.全市专项债券安排使用表

Sheet 1.全市一般公共预算收入决算表
A1: 2022年度随州市一般公共预算收入决算表
A3: 单位:万元
A4: 预算科目 | B4: 决算数
A5: 本 年 收 入 合 计 | B5: 506,099
A6: 一、税收收入 | B6: 344,408
A7: 增值税 | B7: 139,256
A8: 企业所得税 | B8: 47,707
A9: 个人所得税 | B9: 9,712
A10: 资源税 | B10: 8,164
A11: 城市维护建设税 | B11: 31,510
A12: 房产税 | B12: 11,826
A13: 印花税 | B13: 6,121
A14: 城镇土地使用税 | B14: 8,044
A15: 土地增值税 | B15: 15,752
A16: 车船税 | B16: 9,982
A17: 耕地占用税 | B17: 27,169
A18: 契税 | B18: 28,517
A19: 烟叶税 | B19: 0
A20: 环境保护税 | B20: 539
A21: 其他税收收入 | B21: 109
A22: 二、非税收入 | B22: 161,691
A23: 专项收入 | B23: 22,927
A24: 行政事业性收费收入 | B24: 21,543
A25: 罚没收入 | B25: 31,059
A26: 国有资本经营收入 | B26: 0
A27: 国有资源(资产)有偿使用收入 | B27: 73,794
A28: 其他收入 | B28: 12,368

Sheet 2.全市一般公共预算支出决算表
A1: 2022年度随州市一般公共预算支出决算表
A3: 单位:万元
A4: 预算科目 | B4: 决算数
A5: 本 年 支 出 合 计 | B5: 1,814,597
A6: 一般公共服务支出 | B6: =SUM(XFD7+XFD19+XFD28+XFD39+XFD50+XFD61+XFD72+XFD80+XFD89+XFD102+XFD111+XFD122+XFD134+XFD141+XFD149+XFD155+XFD162+XFD169+XFD176+XFD183+XFD190+XFD198+XFD204+XFD210+XFD217+XFD232) -> 230,642
A7: 人大事务 | B7: =SUM(XFD8:XFD18) -> 4,554
A8: 行政运行 | B8: 3,175
A9: 一般行政管理事务 | B9: 782
A10: 机关服务 | B10: 0
A11: 人大会议 | B11: 63
A12: 人大立法 | B12: 30
A13: 人大监督 | B13: 157
A14: 人大代表履职能力提升 | B14: 17
A15: 代表工作 | B15: 201
A16: 人大信访工作 | B16: 0
A17: 事业运行 | B17: 0
A18: 其他人大事务支出 | B18: 129
A19: 政协事务 | B19: =SUM(XFD20:XFD27) -> 3,767
A20: 行政运行 | B20: 2,912
A21: 一般行政管理事务 | B21: 189
A22: 机关服务 | B22: 0
A23: 政协会议 | B23: 16
A24: 委员视察 | B24: 57
A25: 参政议政 | B25: 80
A26: 事业运行 | B26: 0
A27: 其他政协事务支出 | B27: 513
A28: 政府办公厅(室)及相关机构事务 | B28: =SUM(XFD29:XFD38) -> 117,675
A29: 行政运行 | B29: 61,504
A30: 一般行政管理事务 | B30: 5,305
A31: 机关服务 | B31: 588
A32: 专项服务 | B32: 183
A33: 专项业务及机关事务管理 | B33: 1,143
A34: 政务公开审批 | B34: 497
A35: 信访事务 | B35: 1,422
A36: 参事事务 | B36: 0
A37: 事业运行 | B37: 4,540
A38: 其他政府办公厅(室)及相关机构事务支出 | B38: 42,493
A39: 发展与改革事务 | B39: =SUM(XFD40:XFD49) -> 4,494
A40: 行政运行 | B40: 2,781
A41: 一般行政管理事务 | B41: 735
A42: 机关服务 | B42: 0
A43: 战略规划与实施 | B43: 16
A44: 日常经济运行调节 | B44: 16
A45: 社会事业发展规划 | B45: 71
A46: 经济体制改革研究 | B46: 116
A47: 物价管理 | B47: 101
A48: 事业运行 | B48: 449
A49: 其他发展与改革事务支出 | B49: 209
A50: 统计信息事务 | B50: =SUM(XFD51:XFD60) -> 1,779
A51: 行政运行 | B51: 979
A52: 一般行政管理事务 | B52: 5
A53: 机关服务 | B53: 0
A54: 信息事务 | B54: 0
A55: 专项统计业务 | B55: 174
A56: 统计管理 | B56: 10
A57: 专项普查活动 | B57: 88
A58: 统计抽样调查 | B58: 303
A59: 事业运行 | B59: 115
A60: 其他统计信息事务支出 | B60: 105
A61: 财政事务 | B61: =SUM(XFD62:XFD71) -> 15,832
A62: 行政运行 | B62: 5,396
A63: 一般行政管理事务 | B63: 237
A64: 机关服务 | B64: 0
A65: 预算改革业务 | B65: 237
A66: 财政国库业务 | B66: 146
A67: 财政监察 | B67: 16
A68: 信息化建设 | B68: 255
A69: 财政委托业务支出 | B69: 327
A70: 事业运行 | B70: 8,195
A71: 其他财政事务支出 | B71: 1,023
A72: 税收事务 | B72: =SUM(XFD73:XFD79) -> 14,189
A73: 行政运行 | B73: 13,682
A74: 一般行政管理事务 | B74: 399
A75: 机关服务 | B75: 0
A76: 信息化建设 | B76: 0
A77: 税收业务 | B77: 8
A78: 事业运行 | B78: 0
A79: 其他税收事务支出 | B79: 100
A80: 审计事务 | B80: =SUM(XFD81:XFD88) -> 2,633
A81: 行政运行 | B81: 1,848
A82: 一般行政管理事务 | B82: 0
A83: 机关服务 | B83: 0
A84: 审计业务 | B84: 474
A85: 审计管理 | B85: 10
A86: 信息化建设 | B86: 47
A87: 事业运行 | B87: 118
A88: 其他审计事务支出 | B88: 136
A89: 海关事务 | B89: =SUM(XFD90:XFD101) -> 560
A90: 行政运行 | B90: 400
A91: 一般行政管理事务 | B91: 60
A92: 机关服务 | B92: 0
A93: 缉私办案 | B93: 0
A94: 口岸管理 | B94: 0
A95: 信息化建设 | B95: 0
A96: 海关关务 | B96: 0
A97: 关税征管 | B97: 0
A98: 海关监管 | B98: 0
A99: 检验检疫 | B99: 0
A100: 事业运行 | B100: 0
A101: 其他海关事务支出 | B101: 100
A102: 纪检监察事务 | B102: =SUM(XFD103:XFD110) -> 9,246
A103: 行政运行 | B103: 6,620
A104: 一般行政管理事务 | B104: 393
A105: 机关服务 | B105: 0
A106: 大案要案查处 | B106: 1,035
A107: 派驻派出机构 | B107: 170
A108: 巡视工作 | B108: 82
A109: 事业运行 | B109: 173
A110: 其他纪检监察事务支出 | B110: 773
A111: 商贸事务 | B111: =SUM(XFD112:XFD121) -> 2,010
A112: 行政运行 | B112: 562
A113: 一般行政管理事务 | B113: 3
A114: 机关服务 | B114: 0
A115: 对外贸易管理 | B115: 0
A116: 国际经济合作 | B116: 0
A117: 外资管理 | B117: 0
A118: 国内贸易管理 | B118: 0
A119: 招商引资 | B119: 1,334
A120: 事业运行 | B120: 26
A121: 其他商贸事务支出 | B121: 85
A122: 知识产权事务 | B122: =SUM(XFD123:XFD133) -> 58
A123: 行政运行 | B123: 0
A124: 一般行政管理事务 | B124: 0
A125: 机关服务 | B125: 0
A126: 专利审批 | B126: 0
A127: 知识产权战略和规划 | B127: 0
A128: 国际合作与交流 | B128: 0
A129: 知识产权宏观管理 | B129: 0
A130: 商标管理 | B130: 0
A131: 原产地地理标志管理 | B131: 0
A132: 事业运行 | B132: 0
A133: 其他知识产权事务支出 | B133: 58
A134: 民族事务 | B134: =SUM(XFD135:XFD140) -> 235
A135: 行政运行 | B135: 60
A136: 一般行政管理事务 | B136: 3
A137: 机关服务 | B137: 0
A138: 民族工作专项 | B138: 75
A139: 事业运行 | B139: 3
A140: 其他民族事务支出 | B140: 94
A141: 港澳台事务 | B141: =SUM(XFD142:XFD148) -> 18
A142: 行政运行 | B142: 0
A143: 一般行政管理事务 | B143: 0
A144: 机关服务 | B144: 0
A145: 港澳事务 | B145: 5
A146: 台湾事务 | B146: 13
A147: 事业运行 | B147: 0
A148: 其他港澳台事务支出 | B148: 0
A149: 档案事务 | B149: =SUM(XFD150:XFD154) -> 896
A150: 行政运行 | B150: 621
A151: 一般行政管理事务 | B151: 0
A152: 机关服务 | B152: 0
A153: 档案馆 | B153: 196
A154: 其他档案事务支出 | B154: 79
A155: 民主党派及工商联事务 | B155: =SUM(XFD156:XFD161) -> 547
A156: 行政运行 | B156: 427
A157: 一般行政管理事务 | B157: 104
A158: 机关服务 | B158: 0
A159: 参政议政 | B159: 0
A160: 事业运行 | B160: 10
A161: 其他民主党派及工商联事务支出 | B161: 6
A162: 群众团体事务 | B162: =SUM(XFD163:XFD168) -> 2,252
A163: 行政运行 | B163: 1,412
A164: 一般行政管理事务 | B164: 457
A165: 机关服务 | B165: 0
A166: 工会事务 | B166: 155
A167: 事业运行 | B167: 107
A168: 其他群众团体事务支出 | B168: 121
A169: 党委办公厅(室)及相关机构事务 | B169: =SUM(XFD170:XFD175) -> 6,509
A170: 行政运行 | B170: 4,031
A171: 一般行政管理事务 | B171: 547
A172: 机关服务 | B172: 0
A173: 专项业务 | B173: 543
A174: 事业运行 | B174: 298
A175: 其他党委办公厅(室)及相关机构事务支出 | B175: 1,090
A176: 组织事务 | B176: =SUM(XFD177:XFD182) -> 6,481
A177: 行政运行 | B177: 3,454
A178: 一般行政管理事务 | B178: 296
A179: 机关服务 | B179: 0
A180: 公务员事务 | B180: 14
A181: 事业运行 | B181: 84
A182: 其他组织事务支出 | B182: 2,633
A183: 宣传事务 | B183: =SUM(XFD184:XFD189) -> 3,320
A184: 行政运行 | B184: 1,790
A185: 一般行政管理事务 | B185: 154
A186: 机关服务 | B186: 0
A187: 宣传管理 | B187: 226
A188: 事业运行 | B188: 224
A189: 其他宣传事务支出 | B189: 926
A190: 统战事务 | B190: =SUM(XFD191:XFD197) -> 1,342
A191: 行政运行 | B191: 1,006
A192: 一般行政管理事务 | B192: 112
A193: 机关服务 | B193: 0
A194: 宗教事务 | B194: 126
A195: 华侨事务 | B195: 18
A196: 事业运行 | B196: 17
A197: 其他统战事务支出 | B197: 63
A198: 对外联络事务 | B198: =SUM(XFD199:XFD203) -> 196
A199: 行政运行 | B199: 184
A200: 一般行政管理事务 | B200: 0
A201: 机关服务 | B201: 0
... 1113 more rows

Sheet 3.市本级一般公共预算收入决算表
A1: 2022年度随州市本级一般公共预算收入决算表
A3: 单位:万元
A4: 预算科目 | B4: 决算数
A5: 本 年 收 入 合 计 | B5: 145,101
A6: 一、税收收入 | B6: 90,774
A7: 增值税 | B7: 26,058
A8: 企业所得税 | B8: 16,620
A9: 个人所得税 | B9: 4,007
A10: 资源税 | B10: 147
A11: 城市维护建设税 | B11: 6,424
A12: 房产税 | B12: 4,612
A13: 印花税 | B13: 2,288
A14: 城镇土地使用税 | B14: 2,870
A15: 土地增值税 | B15: 6,394
A16: 车船税 | B16: 2,662
A17: 耕地占用税 | B17: 7,200
A18: 契税 | B18: 11,127
A19: 烟叶税 | B19: 0
A20: 环境保护税 | B20: 304
A21: 其他税收收入 | B21: 61
A22: 二、非税收入 | B22: 54,327
A23: 专项收入 | B23: 4,619
A24: 行政事业性收费收入 | B24: 10,630
A25: 罚没收入 | B25: 16,714
A26: 国有资本经营收入 | B26: 0
A27: 国有资源(资产)有偿使用收入 | B27: 12,161
A28: 其他收入 | B28: 10,203

Sheet 4.市本级一般公共预算支出决算表
A1: 2022年度随州市本级一般公共预算支出决算表
A3: 单位:万元
A4: 预算科目 | B4: 决算数
A5: 一般公共预算支出 | B5: =SUM(XFD6,XFD235,XFD275,XFD294,XFD384,XFD436,XFD492,XFD549,XFD676,XFD749,XFD826,XFD849,XFD956,XFD1014,XFD1078,XFD1098,XFD1128,XFD1138,XFD1183,XFD1203,XFD1247,XFD1296,XFD1299,XFD1311) -> 381,401
A6: 一般公共服务支出 | B6: =SUM(XFD7+XFD19+XFD28+XFD39+XFD50+XFD61+XFD72+XFD80+XFD89+XFD102+XFD111+XFD122+XFD134+XFD141+XFD149+XFD155+XFD162+XFD169+XFD176+XFD183+XFD190+XFD198+XFD204+XFD210+XFD217+XFD232) -> 38,242
A7: 人大事务 | B7: =SUM(XFD8:XFD18) -> 1,217
A8: 行政运行 | B8: 994
A9: 一般行政管理事务 | B9: 66
A10: 机关服务 | B10: 0
A11: 人大会议 | B11: 5
A12: 人大立法 | B12: 8
A13: 人大监督 | B13: 86
A14: 人大代表履职能力提升 | B14: 0
A15: 代表工作 | B15: 58
A16: 人大信访工作 | B16: 0
A17: 事业运行 | B17: 0
A18: 其他人大事务支出 | B18: 0
A19: 政协事务 | B19: =SUM(XFD20:XFD27) -> 1,516
A20: 行政运行 | B20: 905
A21: 一般行政管理事务 | B21: 62
A22: 机关服务 | B22: 0
A23: 政协会议 | B23: 0
A24: 委员视察 | B24: 51
A25: 参政议政 | B25: 62
A26: 事业运行 | B26: 0
A27: 其他政协事务支出 | B27: 436
A28: 政府办公厅(室)及相关机构事务 | B28: =SUM(XFD29:XFD38) -> 5,201
A29: 行政运行 | B29: 2,075
A30: 一般行政管理事务 | B30: 124
A31: 机关服务 | B31: 588
A32: 专项服务 | B32: 0
A33: 专项业务及机关事务管理 | B33: 464
A34: 政务公开审批 | B34: 497
A35: 信访事务 | B35: 388
A36: 参事事务 | B36: 0
A37: 事业运行 | B37: 401
A38: 其他政府办公厅(室)及相关机构事务支出 | B38: 664
A39: 发展与改革事务 | B39: =SUM(XFD40:XFD49) -> 1,070
A40: 行政运行 | B40: 798
A41: 一般行政管理事务 | B41: 205
A42: 机关服务 | B42: 0
A43: 战略规划与实施 | B43: 0
A44: 日常经济运行调节 | B44: 0
A45: 社会事业发展规划 | B45: 0
A46: 经济体制改革研究 | B46: 0
A47: 物价管理 | B47: 12
A48: 事业运行 | B48: 55
A49: 其他发展与改革事务支出 | B49: 0
A50: 统计信息事务 | B50: =SUM(XFD51:XFD60) -> 709
A51: 行政运行 | B51: 436
A52: 一般行政管理事务 | B52: 0
A53: 机关服务 | B53: 0
A54: 信息事务 | B54: 0
A55: 专项统计业务 | B55: 77
A56: 统计管理 | B56: 0
A57: 专项普查活动 | B57: 77
A58: 统计抽样调查 | B58: 119
A59: 事业运行 | B59: 0
A60: 其他统计信息事务支出 | B60: 0
A61: 财政事务 | B61: =SUM(XFD62:XFD71) -> 1,845
A62: 行政运行 | B62: 1,382
A63: 一般行政管理事务 | B63: 5
A64: 机关服务 | B64: 0
A65: 预算改革业务 | B65: 109
A66: 财政国库业务 | B66: 63
A67: 财政监察 | B67: 0
A68: 信息化建设 | B68: 98
A69: 财政委托业务支出 | B69: 160
A70: 事业运行 | B70: 0
A71: 其他财政事务支出 | B71: 28
A72: 税收事务 | B72: =SUM(XFD73:XFD79) -> 3,075
A73: 行政运行 | B73: 3,075
A74: 一般行政管理事务 | B74: 0
A75: 机关服务 | B75: 0
A76: 信息化建设 | B76: 0
A77: 税收业务 | B77: 0
A78: 事业运行 | B78: 0
A79: 其他税收事务支出 | B79: 0
A80: 审计事务 | B80: =SUM(XFD81:XFD88) -> 1,012
A81: 行政运行 | B81: 797
A82: 一般行政管理事务 | B82: 0
A83: 机关服务 | B83: 0
A84: 审计业务 | B84: 200
A85: 审计管理 | B85: 0
A86: 信息化建设 | B86: 15
A87: 事业运行 | B87: 0
A88: 其他审计事务支出 | B88: 0
A89: 海关事务 | B89: =SUM(XFD90:XFD101) -> 560
A90: 行政运行 | B90: 400
A91: 一般行政管理事务 | B91: 60
A92: 机关服务 | B92: 0
A93: 缉私办案 | B93: 0
A94: 口岸管理 | B94: 0
A95: 信息化建设 | B95: 0
A96: 海关关务 | B96: 0
A97: 关税征管 | B97: 0
A98: 海关监管 | B98: 0
A99: 检验检疫 | B99: 0
A100: 事业运行 | B100: 0
A101: 其他海关事务支出 | B101: 100
A102: 纪检监察事务 | B102: =SUM(XFD103:XFD110) -> 4,307
A103: 行政运行 | B103: 2,659
A104: 一般行政管理事务 | B104: 0
A105: 机关服务 | B105: 0
A106: 大案要案查处 | B106: 925
A107: 派驻派出机构 | B107: 170
A108: 巡视工作 | B108: 0
A109: 事业运行 | B109: 67
A110: 其他纪检监察事务支出 | B110: 486
A111: 商贸事务 | B111: =SUM(XFD112:XFD121) -> 588
A112: 行政运行 | B112: 184
A113: 一般行政管理事务 | B113: 0
A114: 机关服务 | B114: 0
A115: 对外贸易管理 | B115: 0
A116: 国际经济合作 | B116: 0
A117: 外资管理 | B117: 0
A118: 国内贸易管理 | B118: 0
A119: 招商引资 | B119: 404
A120: 事业运行 | B120: 0
A121: 其他商贸事务支出 | B121: 0
A122: 知识产权事务 | B122: =SUM(XFD123:XFD133) -> 58
A123: 行政运行 | B123: 0
A124: 一般行政管理事务 | B124: 0
A125: 机关服务 | B125: 0
A126: 专利审批 | B126: 0
A127: 知识产权战略和规划 | B127: 0
A128: 国际合作与交流 | B128: 0
A129: 知识产权宏观管理 | B129: 0
A130: 商标管理 | B130: 0
A131: 原产地地理标志管理 | B131: 0
A132: 事业运行 | B132: 0
A133: 其他知识产权事务支出 | B133: 58
A134: 民族事务 | B134: =SUM(XFD135:XFD140) -> 56
A135: 行政运行 | B135: 0
A136: 一般行政管理事务 | B136: 0
A137: 机关服务 | B137: 0
A138: 民族工作专项 | B138: 0
A139: 事业运行 | B139: 0
A140: 其他民族事务支出 | B140: 56
A141: 港澳台事务 | B141: =SUM(XFD142:XFD148) -> 13
A142: 行政运行 | B142: 0
A143: 一般行政管理事务 | B143: 0
A144: 机关服务 | B144: 0
A145: 港澳事务 | B145: 0
A146: 台湾事务 | B146: 13
A147: 事业运行 | B147: 0
A148: 其他港澳台事务支出 | B148: 0
A149: 档案事务 | B149: =SUM(XFD150:XFD154) -> 317
A150: 行政运行 | B150: 256
A151: 一般行政管理事务 | B151: 0
A152: 机关服务 | B152: 0
A153: 档案馆 | B153: 14
A154: 其他档案事务支出 | B154: 47
A155: 民主党派及工商联事务 | B155: =SUM(XFD156:XFD161) -> 260
A156: 行政运行 | B156: 204
A157: 一般行政管理事务 | B157: 56
A158: 机关服务 | B158: 0
A159: 参政议政 | B159: 0
A160: 事业运行 | B160: 0
A161: 其他民主党派及工商联事务支出 | B161: 0
A162: 群众团体事务 | B162: =SUM(XFD163:XFD168) -> 844
A163: 行政运行 | B163: 518
A164: 一般行政管理事务 | B164: 223
A165: 机关服务 | B165: 0
A166: 工会事务 | B166: 40
A167: 事业运行 | B167: 0
A168: 其他群众团体事务支出 | B168: 63
A169: 党委办公厅(室)及相关机构事务 | B169: =SUM(XFD170:XFD175) -> 2,337
A170: 行政运行 | B170: 1,609
A171: 一般行政管理事务 | B171: 122
A172: 机关服务 | B172: 0
A173: 专项业务 | B173: 189
A174: 事业运行 | B174: 36
A175: 其他党委办公厅(室)及相关机构事务支出 | B175: 381
A176: 组织事务 | B176: =SUM(XFD177:XFD182) -> 1,000
A177: 行政运行 | B177: 561
A178: 一般行政管理事务 | B178: 238
A179: 机关服务 | B179: 0
A180: 公务员事务 | B180: 0
A181: 事业运行 | B181: 0
A182: 其他组织事务支出 | B182: 201
A183: 宣传事务 | B183: =SUM(XFD184:XFD189) -> 997
A184: 行政运行 | B184: 467
A185: 一般行政管理事务 | B185: 81
A186: 机关服务 | B186: 0
A187: 宣传管理 | B187: 50
A188: 事业运行 | B188: 0
A189: 其他宣传事务支出 | B189: 399
A190: 统战事务 | B190: =SUM(XFD191:XFD197) -> 484
A191: 行政运行 | B191: 348
A192: 一般行政管理事务 | B192: 74
A193: 机关服务 | B193: 0
A194: 宗教事务 | B194: 50
A195: 华侨事务 | B195: 12
A196: 事业运行 | B196: 0
A197: 其他统战事务支出 | B197: 0
A198: 对外联络事务 | B198: =SUM(XFD199:XFD203) -> 196
A199: 行政运行 | B199: 184
A200: 一般行政管理事务 | B200: 0
A201: 机关服务 | B201: 0
... 1113 more rows

Sheet 5.市本级一般公共预算基本支出经济分类决算数
A1: 2022年市本级一般公共预算(基本)支出决算经济分类表
C2: 单位:万元
A3: 科目编码 | B3: 科目名称 | C3: 一般公共预算基本支出
B5: 一般公共预算支出 | C5: 119,579
A6: 501 | B6: 机关工资福利支出 | C6: 54,568
A7: 50101 | B7: 工资奖金津补贴 | C7: 37,362
A8: 50102 | B8: 社会保障缴费 | C8: 6,402
A9: 50103 | B9: 住房公积金 | C9: 4,375
A10: 50199 | B10: 其他工资福利支出 | C10: 6,429
A11: 502 | B11: 机关商品和服务支出 | C11: 10,262
A12: 50201 | B12: 办公经费 | C12: 3,421
A13: 50202 | B13: 会议费 | C13: 176
A14: 50203 | B14: 培训费 | C14: 152
A15: 50204 | B15: 专用材料购置费 | C15: 453
A16: 50205 | B16: 委托业务费 | C16: 2,402
A17: 50206 | B17: 公务接待费 | C17: 60
A18: 50207 | B18: 因公出国(境)费用 | C18: 1
A19: 50208 | B19: 公务用车运行维护费 | C19: 564
A20: 50209 | B20: 维修(护)费 | C20: 330
A21: 50299 | B21: 其他商品和服务支出 | C21: 2,703
A22: 503 | B22: 机关资本性支出(一) | C22: 4,380
A23: 50301 | B23: 房屋建筑物购建 | C23: 0
A24: 50302 | B24: 基础设施建设 | C24: 0
A25: 50303 | B25: 公务用车购置 | C25: 410
A26: 50305 | B26: 土地征迁补偿和安置支出 | C26: 0
A27: 50306 | B27: 设备购置 | C27: 3,959
A28: 50307 | B28: 大型修缮 | C28: 0
A29: 50399 | B29: 其他资本性支出 | C29: 11
A30: 504 | B30: 机关资本性支出(二) | C30: 0
A31: 50401 | B31: 房屋建筑物购建 | C31: 0
A32: 50402 | B32: 基础设施建设 | C32: 0
A33: 50403 | B33: 公务用车购置 | C33: 0
A34: 50404 | B34: 设备购置 | C34: 0
A35: 50405 | B35: 大型修缮 | C35: 0
A36: 50499 | B36: 其他资本性支出 | C36: 0
A37: 505 | B37: 对事业单位经常性补助 | C37: 45,325
A38: 50501 | B38: 工资福利支出 | C38: 41,592
A39: 50502 | B39: 商品和服务支出 | C39: 3,733
A40: 50599 | B40: 其他对事业单位补助 | C40: 0
A41: 506 | B41: 对事业单位资本性补助 | C41: 0
A42: 50601 | B42: 资本性支出(一) | C42: 0
A43: 50602 | B43: 资本性支出(二) | C43: 0
A44: 507 | B44: 对企业补助 | C44: 0
A45: 50701 | B45: 费用补贴 | C45: 0
A46: 50702 | B46: 利息补贴 | C46: 0
A47: 50799 | B47: 其他对企业补助 | C47: 0
A48: 508 | B48: 对企业资本性支出 | C48: 0
A49: 50803 | B49: 资本金注入(一) | C49: 0
A50: 50804 | B50: 资本金注入(二) | C50: 0
A51: 50805 | B51: 政府投资基金股权投资 | C51: 0
A52: 50899 | B52: 其他对企业资本性支出 | C52: 0
A53: 509 | B53: 对个人和家庭的补助 | C53: 5,044
A54: 50901 | B54: 社会福利和救助 | C54: 190
A55: 50902 | B55: 助学金 | C55: 209
A56: 50903 | B56: 个人农业生产补贴 | C56: 0
A57: 50905 | B57: 离退休费 | C57: 2,960
A58: 50999 | B58: 其他对个人和家庭补助 | C58: 1,685
A59: 510 | B59: 对社会保障基金补助 | C59: 0
A60: 51002 | B60: 对社会保险基金补助 | C60: 0
A61: 51003 | B61: 补充全国社会保障基金 | C61: 0
A62: 51004 | B62: 对机关事业单位职业年金的补助 | C62: 0
A63: 511 | B63: 债务利息及费用支出 | C63: 0
A64: 51101 | B64: 国内债务付息 | C64: 0
A65: 51102 | B65: 国外债务付息 | C65: 0
A66: 51103 | B66: 国内债务发行费用 | C66: 0
A67: 51104 | B67: 国外债务发行费用 | C67: 0 | D67: 0.00
A68: 599 | B68: 其他支出 | C68: 0 | D68: 0.00
A69: 59907 | B69: 国家赔偿费用支出 | C69: 0 | D69: 0.00
A70: 59908 | B70: 对民间非营利组织和群众性自治组织补贴 | C70: 0 | D70: 0.00
A71: 59909 | B71: 经常性赠与 | C71: 0
A72: 59910 | B72: 资本性赠与 | C72: 0
A73: 59999 | B73: 其他支出 | C73: 0

Sheet 6.市对区税收返还决算表
A1: 市对区税收返还决算表
D2: 单位：万元
A3: 项目 | B3: 分地区
B4: 合计 | C4: 曾都区本级 | D4: 高新区 | E4: 大洪山
A5: 返还性支出 | B5: 3,345 | C5: 2,974 | D5: 333 | E5: 38
A6: 所得税基数返还支出 | B6: 1,149 | C6: 1,141 | E6: 8
A7: 成品油税费改革税收返还支出 | B7: 124 | C7: 124
A8: 增值税税收返还支出 | B8: 0
A9: 消费税税收返还支出 | B9: 0
A10: 增值税“五五分享”税收返还支出 | B10: 2,072 | C10: 1,709 | D10: 333 | E10: 30
A11: 其他返还性支出 | B11: 0

Sheet 7.一般性转移支付决算表
A1: 2022年度一般公共预算转移性支付决算表
A3: 单位：万元
A4: 项目 | B4: 决 算 数 | C4: 决 算 数 | D4: 决 算 数
B5: 曾都区 | C5: 高新区 | D5: 大洪山
A6: 一般性转移支付收入 | B6: =SUM(XFD7:XFD44) -> 244,945 | C6: =SUM(XFD7:XFD44) -> 14,621 | D6: =SUM(XFD7:XFD44) -> 5,918
A7: 体制补助收入 | B7: 0 | C7: 0 | D7: 0
A8: 均衡性转移支付收入 | B8: 11,258 | C8: 477 | D8: 40
A9: 县级基本财力保障机制奖补资金收入 | B9: 48,266 | C9: 688 | D9: 149
A10: 结算补助收入 | B10: 32,361 | C10: 11,733 | D10: 5,195
A11: 资源枯竭型城市转移支付补助收入 | B11: 0 | C11: 0 | D11: 0
A12: 企业事业单位划转补助收入 | B12: 0 | C12: 0 | D12: 0
A13: 产粮(油)大县奖励资金收入 | B13: 2,029 | C13: 0 | D13: 0
A14: 重点生态功能区转移支付收入 | B14: 4,555 | C14: 0 | D14: 0
A15: 固定数额补助收入 | B15: 24,634 | C15: 1,723 | D15: 534
A16: 革命老区转移支付收入 | B16: 800 | C16: 0 | D16: 0
A17: 民族地区转移支付收入 | B17: 0 | C17: 0 | D17: 0
A18: 边境地区转移支付收入 | B18: 0 | C18: 0 | D18: 0
A19: 欠发达地区转移支付收入 | B19: 2,248 | C19: 0 | D19: 0
A20: 一般公共服务共同财政事权转移支付收入 | B20: 0 | C20: 0 | D20: 0
A21: 外交共同财政事权转移支付收入 | B21: 0 | C21: 0 | D21: 0
A22: 国防共同财政事权转移支付收入 | B22: 0 | C22: 0 | D22: 0
A23: 公共安全共同财政事权转移支付收入 | B23: 2,423 | C23: 0 | D23: 0
A24: 教育共同财政事权转移支付收入 | B24: 13,670 | C24: 0 | D24: 0
A25: 科学技术共同财政事权转移支付收入 | B25: 175 | C25: 0 | D25: 0
A26: 文化旅游体育与传媒共同财政事权转移支付收入 | B26: 1,374 | C26: 0 | D26: 0
A27: 社会保障和就业共同财政事权转移支付收入 | B27: 32,099 | C27: 0 | D27: 0
A28: 医疗卫生共同财政事权转移支付收入 | B28: 7,637 | C28: 0 | D28: 0
A29: 节能环保共同财政事权转移支付收入 | B29: 1 | C29: 0 | D29: 0
A30: 城乡社区共同财政事权转移支付收入 | B30: 0 | C30: 0 | D30: 0
A31: 农林水共同财政事权转移支付收入 | B31: 23,540 | C31: 0 | D31: 0
A32: 交通运输共同财政事权转移支付收入 | B32: 10,100 | C32: 0 | D32: 0
A33: 资源勘探工业信息等共同财政事权转移支付收入 | B33: 0 | C33: 0 | D33: 0
A34: 商业服务业等共同财政事权转移支付收入 | B34: 0 | C34: 0 | D34: 0
A35: 金融共同财政事权转移支付收入 | B35: 0 | C35: 0 | D35: 0
A36: 自然资源海洋气象等共同财政事权转移支付收入 | B36: 0 | C36: 0 | D36: 0
A37: 住房保障共同财政事权转移支付收入 | B37: 4,855 | C37: 0 | D37: 0
A38: 粮油物资储备共同财政事权转移支付收入 | B38: 828 | C38: 0 | D38: 0
A39: 灾害防治及应急管理共同财政事权转移支付收入 | B39: 375 | C39: 0 | D39: 0
A40: 其他共同财政事权转移支付收入 | B40: 0 | C40: 0 | D40: 0
A41: 增值税留抵退税转移支付收入 | B41: 4,370 | C41: 0 | D41: 0
A42: 其他退税减税降费转移支付收入 | B42: 5,249 | C42: 0 | D42: 0
A43: 补充县区财力转移支付收入 | B43: 11,707 | C43: 0 | D43: 0
A44: 其他一般性转移支付收入 | B44: 391 | C44: 0 | D44: 0

Sheet 8.一般公共预算专项转移支付分地区、分项目决算表
A1: 2022年市本级对下专项转移支付分地区、分项目决算表
F2: 单位：万元
A3: 项目名称
B4: 合计 | C4: 市本级 | D4: 曾都区 | E4: 高新区 | F4: 大洪山
A5: 一般公共预算资金 | B5: =XFD6+XFD29+XFD35+XFD43+XFD55+XFD64+XFD72+XFD91+XFD97+XFD121+XFD124+XFD139+XFD145+XFD150+XFD153+XFD162+XFD173 -> 47,422.00 | C5: =#REF!+#REF!+#REF!+#REF!+#REF!+#REF!+#REF!+#REF!+#REF!+#REF!+#REF!+#REF!+#REF!+#REF!+#REF!+#REF!+#REF! -> 19,021.00 | D5: =#REF!+#REF!+#REF!+#REF!+#REF!+#REF!+#REF!+#REF!+#REF!+#REF!+#REF!+#REF!+#REF!+#REF!+#REF!+#REF!+#REF! -> 25,964.00 | E5: =#REF!+#REF!+#REF!+#REF!+#REF!+#REF!+#REF!+#REF!+#REF!+#REF!+#REF!+#REF!+#REF!+#REF!+#REF!+#REF!+#REF! -> 1,817.00 | F5: =#REF!+#REF!+#REF!+#REF!+#REF!+#REF!+#REF!+#REF!+#REF!+#REF!+#REF!+#REF!+#REF!+#REF!+#REF!+#REF!+#REF! -> 620.00
A6: [201]一般公共服务支出 | B6: =XFD6+XFD6+XFD6+XFD6 -> 837.00 | C6: 503.00 | D6: 304.00 | F6: 30.00
A7: 人大系统补助经费 | B7: 30.00 | C7: 10.00 | D7: 20.00
A8: 政协系统补助经费项目 | B8: 20.00 | C8: 20.00
A9: 统计调查专项转移支付资金 | B9: 76.00 | C9: 76.00
A10: 基层财政监管能力建设资金 | B10: 170.00 | D10: 140.00 | F10: 30.00
A11: 财政投资报表信息统计经费 | B11: 6.00 | C11: 4.00 | D11: 2.00
A12: 预算执行经费 | B12: 23.00 | C12: 17.00 | D12: 6.00
A13: 财政信息化建设维护经费 | B13: 15.00 | C13: 15.00
A14: 注册会计师考试工作经费 | B14: 3.00 | C14: 3.00
A15: 省机构编制奖励基金 | B15: 31.00 | C15: 17.00 | D15: 14.00
A16: 经济建设转移支付预算 | B16: 0.00
A17: 纪检监察补助经费 | B17: 32.00 | D17: 32.00
A18: 知识产权转化引导及发展专项资金 | B18: 58.00 | C18: 58.00
A19: 县级档案馆建设“以奖代补”专项资金 | B19: 0.00
A20: 全省工会协理员工资补贴 | B20: 9.00 | C20: 9.00
A21: 全省基层共青团工作经费 | B21: 7.00 | D21: 7.00
A22: 省级“扫黄打非”专项资金 | B22: 5.00 | C22: 5.00
A23: 一村多名大学生计划 | B23: 0.00
A24: 人才培养专项 | B24: 0.00
A25: 村红白理事会奖励经费 | B25: 0.00
A26: 省级信访解难资金 | B26: 29.00 | C26: 29.00
A27: 食品药品监管补助资金 | B27: 130.00 | C27: 57.00 | D27: 73.00
A28: 市场监督管理专项补助经费 | B28: 193.00 | C28: 183.00 | D28: 10.00
A29: [205]教育支出 | B29: 150.00 | D29: 150.00
A30: 教育现代化推进工程中央基建投资 | B30: 0.00
A31: 省级预算内基本建设资金 | B31: 150.00 | D31: 150.00
A32: 省属本科高校生均拨款 | B32: 0.00
A33: 人才培养专项 | B33: 0.00
A34: 组织工作专项 | B34: 0.00
A35: [206]科学技术支出 | B35: 450.00 | C35: 250.00 | D35: 200.00
A36: 科技研究与开发资金 | B36: 0.00
A37: 支持企业发展专项 | B37: 0.00
A38: 省级科技创新平台专项 | B38: 450.00 | C38: 250.00 | D38: 200.00
A39: 院省合作专项资金 | B39: 0.00
A40: 重大科技创新专项资金 | B40: 0.00
A41: 组织工作专项 | B41: 0.00
A42: “三区”人才支持计划科技人员专项 | B42: 0.00
A43: [207]文化旅游体育与传媒支出 | B43: 580.00 | C43: 560.00 | D43: 20.00
A44: 文化旅游提升工程中央基建投资 | B44: 0.00
A45: 省级预算内基本建设资金 | B45: 0.00
A46: “三区”人才支持计划文化人员专项 | B46: 0.00
A47: 文旅产业融合 | B47: 0.00
A48: 省级旅游发展专项 | B48: 20.00 | D48: 20.00
A49: 湖北旅游形象宣传资金 | B49: 200.00 | C49: 200.00
A50: 省级预算内基本建设资金 | B50: 0.00
A51: 公共体育普及工程中央基建投资预算 | B51: 360.00 | C51: 360.00
A52: 文化产业发展专项资金转移支付项目 | B52: 0.00
A53: 文化事业发展专项资金 | B53: 0.00
A54: 文艺精品创作扶持专项资金 | B54: 0.00
A55: [208]社会保障和就业支出 | B55: 82.00 | C55: 80.00 | D55: 2.00
A56: 省级预算内基本建设资金 | B56: 0.00
A57: 省属汉外离休干部医疗费 | B57: 0.00
A58: 省属企业离休干部生活补贴 | B58: 3.00 | C58: 3.00
A59: 社会服务兜底工程中央基建投资 | B59: 0.00
A60: 人才培养专项 | B60: 0.00
A61: 省级困难职工帮扶专项资金 | B61: 74.00 | C61: 74.00
A62: 省部级困难劳模补助资金及劳模日常管理经费 | B62: 5.00 | C62: 3.00 | D62: 2.00
A63: 人口老龄化工程和托育建设中央基建投资预算 | B63: 0.00
A64: [210]卫生健康支出 | B64: 5,576.00 | C64: 5,119.00 | D64: 457.00
A65: 组织工作专项 | B65: 0.00
A66: 省级预算内基本建设资金 | B66: 400.00 | D66: 400.00
A67: 卫生领域中央基建投资 | B67: 4,000.00 | C67: 4,000.00
A68: 重大传染病防控经费 | B68: 1,164.00 | C68: 1,107.00 | D68: 57.00
A69: 特困艾滋病人、 晚血病人和部分新冠肺炎康复患者春节慰问资金 | B69: 12.00 | C69: 12.00
A70: 医疗应急物资储备设施项目中央基建投资 | B70: =XFD70+XFD70+XFD70+XFD70 -> 0.00
A71: 医疗废物处置设施建设项目中央基建投资 | B71: 0.00
A72: [211]节能环保支出 | B72: 5,084.00 | C72: 3,074.00 | D72: 2,010.00
A73: 省级预算内基本建设资金 | B73: 210.00 | C73: 200.00 | D73: 10.00
A74: 水污染防治资金预算 | B74: 2,000.00 | C74: 2,000.00
A75: 土壤污染防治专项资金 | B75: 0.00
A76: 城市管网及污水处理补助资金 | B76: 0.00
A77: 重点流域水环境综合治理中央基建投资 | B77: 0.00
A78: 长江经济带绿色发展专项中央基建投资 | B78: 76.00 | C78: 76.00
A79: 大气污染防治资金 | B79: 798.00 | C79: 798.00
A80: 污染治理和节能减碳专项（污染治理方向）中央基建投资预算 | B80: 2,000.00 | D80: 2,000.00
A81: 生态文明建设专项中央基建投资 | B81: 0.00
A82: 生态保护支撑体系专项中央基建投资 | B82: 0.00
A83: 重点区域生态保护和修复专项中央基建投资 | B83: 0.00
A84: 医疗废物处置设施建设项目中央基建投资 | B84: 0.00
A85: 农村环境整治资金 | B85: 0.00
A86: 农村人居环境整治专项中央基建投资 | B86: 0.00
A87: 农业可持续发展专项 | B87: 0.00
A88: 退化林修复工程中央基建投资 | B88: 0.00
A89: 退耕还林还草中央基建投资 | B89: 0.00
A90: 工业企业结构调整专项资金 | B90: 0.00
A91: [212]城乡社区支出 | B91: 10,461.00 | C91: 1,956.00 | D91: 8,205.00 | E91: 300.00
A92: 城市排水防涝设施建设中央基建投资 | B92: 767.00 | C92: 767.00
A93: 重点地区承接产业转移平台建设专项中央基建投资 | B93: 0.00
A94: 城市燃气管道等老化更新改造中央基建投资 | B94: 8,994.00 | C94: 789.00 | D94: 8,205.00
A95: 省级预算内基本建设资金 | B95: 700.00 | C95: 400.00 | E95: 300.00
A96: 排水设施建设中央基建投资 | B96: 0.00
A97: [213]农林水支出 | B97: 3,281.00 | C97: 612.00 | D97: 1,962.00 | E97: 317.00 | F97: 390.00
A98: 省级预算内基本建设资金 | B98: 650.00 | D98: 350.00 | E98: 300.00
A99: 农业可持续发展专项中央基建投资 | B99: 0.00
A100: 农业生产发展专项中央基建投资 | B100: 0.00
A101: 现代农业支撑体系专项中央基建投资 | B101: 0.00
A102: 农业可持续发展专项 | B102: 0.00
A103: 省级财政衔接推进乡村振兴补助资金 | B103: 450.00 | D103: 390.00 | F103: 60.00
A104: 国土综合整治、生态修复与耕地保护项目 | B104: 0.00
A105: 土地整治项目资金 | B105: 0.00
A106: 重点区域生态保护和修复工程专项中央基建投资 | B106: 0.00
A107: 森林草原资源培育专项中央基建投资 | B107: 0.00
A108: 直属水文基础设施建设等项目中央基建投资 | B108: 0.00
A109: 重大水利工程专项中央基建投资 | B109: 0.00
A110: 水利工程专项中央基建投资 | B110: 0.00
A111: 农村扶贫公路中央基建投资 | B111: 0.00
A112: 农村综合改革转移支付 | B112: 1,130.00 | D112: 800.00 | F112: 330.00
A113: 以工代赈示范工程中央基建投资 | B113: 0.00
A114: 普惠金融发展专项资金 | B114: 712.00 | C114: 388.00 | D114: 324.00
A115: 政府性融资担保机构省级财政业务奖补资金 | B115: 0.00
A116: 土地指标跨省域调剂收入安排的支出 | B116: 115.00 | D116: 98.00 | E116: 17.00
A117: 农村厕所革命资金 | B117: 0.00
A118: 省人才培养专项 | B118: 24.00 | C118: 24.00
A119: 藏粮于地藏粮于技专项中央基建投资 | B119: 200.00 | C119: 200.00
A120: 村级债务化解奖励资金 | B120: 0.00
A121: [214]交通运输支出 | B121: 0.00
A122: 省级预算内基本建设资金 | B122: 0.00
A123: 长江经济带绿色发展专项中央基建投资 | B123: 0.00
A124: [215]资源勘探工业信息等支出 | B124: 6,798.00 | C124: 3,172.00 | D124: 2,426.00 | E124: 1,200.00
A125: 制造业高质量发展资金 | B125: 3,713.00 | C125: 2,058.00 | D125: 1,655.00
A126: 省级预算内基本建设资金 | B126: 650.00 | D126: 650.00
A127: 省级融合发展专项资金 | B127: 0.00
A128: 重点产业创新发展 | B128: 2,000.00 | C128: 800.00 | E128: 1,200.00
A129: 全省融资担保机构业务奖补 | B129: 314.00 | C129: 314.00
A130: 双创支撑平台项目中央基建投资 | B130: 0.00
A131: 收回以前年度工业转型升级资金 | B131: 0.00
A132: 重点地区承接产业转移平台建设专项 | B132: 0.00
A133: 工业互联网会议补助经费 | B133: 0.00
A134: 中小企业发展专项资金 | B134: =XFD134+XFD134+XFD134+XFD134 -> 121.00 | D134: 121.00
A135: 湖北省企业上市奖励 | B135: 0.00
A136: 省产业创新能力建设专项资金 | B136: 0.00
A137: 纳入省级股权投资引导基金管理的专项 | B137: 0.00
A138: 省沿江化工企业关改搬转补助资金 | B138: 0.00
A139: [216]商业服务业等支出 | B139: 3,503.00 | C139: 3,398.00 | D139: 105.00
A140: 服务业发展资金 | B140: 2,092.00 | C140: 1,992.00 | D140: 100.00
A141: 省级促进市场体系建设专项资金 | B141: 172.00 | C141: 172.00
A142: 外经贸发展专项资金 | B142: 1,239.00 | C142: 1,234.00 | D142: 5.00
A143: 省级预算内基本建设资金 | B143: 0.00
A144: 城乡冷链和国家物流枢纽建设项目中央基建投资 | B144: 0.00
A145: [220]自然资源海洋气象等支出 | B145: 129.00 | C145: 56.00 | D145: 73.00
A146: 全省基本农田保护项目资金 | B146: 73.00 | D146: 73.00
A147: 省级预算内基本建设资金 | B147: 0.00
A148: 地质灾害防治与矿山环境治理项目 | B148: 0.00
A149: 公共气象服务 | B149: 56.00 | C149: 56.00
A150: [221]住房保障支出 | B150: 8,987.00 | D150: 8,987.00
A151: 保障性安居工程中央基建投资 | B151: 8,987.00 | D151: 8,987.00
A152: 国有垦区危房改造项目中央基建投资 | B152: 0.00
A153: [222]粮油物资储备支出 | B153: 23.00 | D153: 23.00
A154: 全省供销社系统农业社会化服务体系奖补资金 | B154: 0.00
A155: 综合防灾减灾能力建设专项中央基建投资 | B155: 0.00
A156: 重点地区应急储气设施建设中央基建投资 | B156: 0.00
A157: 煤炭储备能力建设中央基建投资 | B157: 0.00
A158: 全省粮食流通产业发展项目 | B158: 23.00 | D158: 23.00
A159: 粮食安全保障调控和应急设施项目中央基建投资 | B159: 0.00
A160: 省级食盐储备资金 | B160: 0.00
A161: 节日增供价差补贴资金 | B161: 0.00
A162: [224]灾害防治及应急管理支出 | B162: 1,441.00 | C162: 241.00 | D162: 1,000.00 | F162: 200.00
A163: 安全生产专项经费 | B163: 0.00
A164: 草原防火等其他农业基础设施专项中央基建投资 | B164: 0.00
A165: 生态保护支撑体系专项中央基建投资 | B165: 0.00
A166: 省级预算内基本建设资金 | B166: 0.00
A167: 森林防火专项经费 | B167: 0.00
A168: 防震减灾专项资金 | B168: 11.00 | C168: 11.00
A169: 地质灾害防治与矿山环境治理项目 | B169: 460.00 | C169: 100.00 | D169: 360.00
A170: 自然灾害防治体系建设补助资金 | B170: 130.00 | C170: 130.00
A171: 暴雨洪涝灾害救灾应急补助中央基建投资 | B171: 840.00 | D171: 640.00 | F171: 200.00
A172: 新型冠状病毒感染的肺炎疫情应急防控中央基建投资 | B172: 0.00
A173: [229]其他支出 | B173: 40.00 | D173: 40.00
A174: 资源型地区转型发展专项中央基建投资 | B174: 0.00
A175: 老工业地区振兴发展中央基建投资 | B175: 0.00
A176: 其他专项补助 | B176: 40.00 | D176: 40.00
A177: 补短板领域政府支持引导民间投资专项中央基建投资 | B177: 0.00
A178: 说明：涉及国防支出未公开

Sheet 9.全市一般债务限额和余额情况表
A2: 全市2022年地方政府一般债务限额余额表
A3: 单位：万元
A4: 地 区 | B4: 一般债务
B5: 余额 | C5: 限额
A6: 随州市 | B6: 1031588 | C6: 1159971
A7: 随州市本级 | B7: 195865 | C7: 250382
A8: 曾都区 | B8: 220430 | C8: 231798
A9: 随县 | B9: 263664 | C9: 289998
A10: 广水市 | B10: 351629 | C10: 387793
A11: 债务情况说明： 1、全市政府债务限额情况。截至2022年底，省核定全市政府债务限额241.17亿元，其中：一般债务116亿元，专项债务125.17亿元。分地区情况为：市本级政府债务限额77.96亿元，其中：一般债务25.04亿元，专项债务59.52亿元；县市区政府债务限额163.21亿元，其中：一般债务90.96亿元，专项债务72.25亿元。 2、全市新增政府债务限额情况。2022年，全市新增政府债务限额33.14亿元，其中：一般债务10.74亿元，专项债务23.4亿元。分地区情况为：市本级新增政府债务限额8.06亿元，其中：一般债务2.68亿元，专项债务5.38亿元；县市区新增政府债务限额26.08亿元，其中：一般债务8.06亿元，专项债务18.02亿元。 3、全市政府债务余额情况。截至2022年底，全市政府债务余额228.33亿元，其中：一般债务103.16亿元，专项债务125.17亿元。分地区情况为：市本级政府债务余额72.51亿元，其中：一般债务19.59亿元，专项债务52.92亿元；县市区政府债务余额155.82亿元，其中：一般债务83.57亿元，专项债务72.25亿元。 4、全市新增政府债务情况。2022年，全市新增政府债务44.41亿元，其中：一般债务9.79亿元，专项债务34.62元。分地区情况为：市本级新增政府债务8.04亿元，其中：一般债务0.64亿元，专项债务7.4亿元；县市区新增政府债务36.37亿元，其中：一般债务9.15亿元，专项债务27.22亿元。按照使用领域划分：全市一般债务用于市政建设3.39亿元、道路交通3.18亿元、农林水利1.61亿元、文化教育0.9亿元、自然灾害防治体系建设0.04亿元、医疗卫生0.19亿元、政权建设0.04亿元、社会保障0.32亿元、其他0.12亿元;专项债务用于保障住房5.48亿元、医疗卫生4.12亿元、社会保障3.4亿元、农林水利3.4亿元、市政建设10.96亿元、文化教育6.3亿元、生态环保0.86亿元、其他0.1亿元。 5、全市政府债务还本付息情况。2022年，全市偿还政府债务本息30.85亿元，其中：还本23.77亿元，付息7.08亿元；市本级偿还政府债务本息8.15亿元，其中：还本5.74亿元，付息2.41 亿元；县市区偿还政府债务本息22.7亿元，其中：还本18.04亿元，付息4.66亿元。 6、全市政府债务再融资情况。2022年，全市发行再融资债券为150308万元，其中：一般债券50334万元、专项债券99974万元；2022年随州本级政府再融资债券为19917万元，其中：一般债券2826万元、专项债券17091万元。

Sheet 10.全市政府性基金收入决算表
A1: 2022年度随州市政府性基金预算收入决算明细表
A3: 单位:万元
A4: 预算科目 | B4: 决算数
A5: 政府性基金预算收入 | B5: =SUM(XFD6,XFD56) -> 283,057
A6: 政府性基金收入(款) | B6: =SUM(XFD7,XFD10:XFD17,XFD23:XFD24,XFD27:XFD30,XFD33:XFD35,XFD38:XFD42,XFD45:XFD46,XFD54:XFD55) -> 249,658
A7: 农网还贷资金收入 | B7: =SUM(XFD8:XFD9) -> 0
A8: 中央农网还贷资金收入 | B8: 0
A9: 地方农网还贷资金收入 | B9: 0
A10: 铁路建设基金收入 | B10: 0
A11: 民航发展基金收入 | B11: 0
A12: 海南省高等级公路车辆通行附加费收入 | B12: 0
A13: 旅游发展基金收入 | B13: 0
A14: 国家电影事业发展专项资金收入 | B14: 0
A15: 国有土地收益基金收入 | B15: 0
A16: 农业土地开发资金收入 | B16: 0
A17: 国有土地使用权出让收入 | B17: =SUM(XFD18:XFD22) -> 233,833
A18: 土地出让价款收入 | B18: 190,211
A19: 补缴的土地价款 | B19: 4,423
A20: 划拨土地收入 | B20: 6,449
A21: 缴纳新增建设用地土地有偿使用费 | B21: -1,934
A22: 其他土地出让收入 | B22: 34,684
A23: 大中型水库移民后期扶持基金收入 | B23: 0
A24: 大中型水库库区基金收入 | B24: =SUM(XFD25:XFD26) -> 0
A25: 中央大中型水库库区基金收入 | B25: 0
A26: 地方大中型水库库区基金收入 | B26: 0
A27: 三峡水库库区基金收入 | B27: 0
A28: 中央特别国债经营基金收入 | B28: 0
A29: 中央特别国债经营基金财务收入 | B29: 0
A30: 彩票公益金收入 | B30: =SUM(XFD31:XFD32) -> 0
A31: 福利彩票公益金收入 | B31: 0
A32: 体育彩票公益金收入 | B32: 0
A33: 城市基础设施配套费收入 | B33: 11,091
A34: 小型水库移民扶助基金收入 | B34: 0
A35: 国家重大水利工程建设基金收入 | B35: =SUM(XFD36:XFD37) -> 0
A36: 中央重大水利工程建设资金 | B36: 0
A37: 地方重大水利工程建设资金 | B37: 0
A38: 车辆通行费 | B38: 0
A39: 核电站乏燃料处理处置基金收入 | B39: 0
A40: 可再生能源电价附加收入 | B40: 0
A41: 船舶油污损害赔偿基金收入 | B41: 0
A42: 废弃电器电子产品处理基金收入 | B42: =SUM(XFD43:XFD44) -> 0
A43: 税务部门征收的废弃电器电子产品处理基金收入 | B43: 0
A44: 海关征收的废弃电器电子产品处理基金收入 | B44: 0
A45: 污水处理费收入 | B45: 4,734
A46: 彩票发行机构和彩票销售机构的业务费用 | B46: =SUM(XFD47:XFD53) -> 0
A47: 福利彩票发行机构的业务费用 | B47: 0
A48: 体育彩票发行机构的业务费用 | B48: 0
A49: 福利彩票销售机构的业务费用 | B49: 0
A50: 体育彩票销售机构的业务费用 | B50: 0
A51: 彩票兑奖周转金 | B51: 0
A52: 彩票发行销售风险基金 | B52: 0
A53: 彩票市场调控资金收入 | B53: 0
A54: 抗疫特别国债财务基金收入 | B54: 0
A55: 其他政府性基金收入 | B55: 0
A56: 专项债务对应项目专项收入 | B56: =SUM(XFD57:XFD59,XFD63:XFD68,XFD71:XFD72) -> 33,399
A57: 海南省高等级公路车辆通行附加费专项债务对应项目专项收入 | B57: 0
A58: 国家电影事业发展专项资金专项债务对应项目专项收入 | B58: 0
A59: 国有土地使用权出让金专项债务对应项目专项收入 | B59: =SUM(XFD60:XFD62) -> 26,530
A60: 土地储备专项债券对应项目专项收入 | B60: 2,318
A61: 棚户区改造专项债券对应项目专项收入 | B61: 4,879
A62: 其他国有土地使用权出让金专项债务对应项目专项收入 | B62: 19,333
A63: 农业土地开发资金专项债务对应项目专项收入 | B63: 0
A64: 大中型水库库区基金专项债务对应项目专项收入 | B64: 0
A65: 城市基础设施配套费专项债务对应项目专项收入 | B65: 0
A66: 小型水库移民扶助基金专项债务对应项目专项收入 | B66: 0
A67: 国家重大水利工程建设基金专项债务对应项目专项收入 | B67: 0
A68: 车辆通行费专项债务对应项目专项收入 | B68: =SUM(XFD69:XFD70) -> 0
A69: 政府收费公路专项债券对应项目专项收入 | B69: 0
A70: 其他车辆通行费专项债务对应项目专项收入 | B70: 0
A71: 污水处理费专项债务对应项目专项收入 | B71: 0
A72: 其他政府性基金专项债务对应项目专项收入 | B72: =SUM(XFD73:XFD74) -> 6,869
A73: 其他地方自行试点项目收益专项债券对应项目专项收入 | B73: 6,869
A74: 其他政府性基金专项债务对应项目专项收入 | B74: 0

Sheet 11.全市政府性基金支出决算表
A1: 2022年度随州市政府性基金预算支出决算表
A3: 单位:万元
A4: 预算科目 | B4: 决算数
A5: 政府性基金预算支出 | B5: =SUM(XFD6,XFD14,XFD30,XFD42,XFD53,XFD111,XFD135,XFD178,XFD183,XFD187,XFD214,XFD231,XFD248) -> 629,674
A6: 科学技术支出 | B6: =XFD7 -> 0
A7: 核电站乏燃料处理处置基金支出 | B7: =SUM(XFD8:XFD13) -> 0
A8: 乏燃料运输 | B8: 0
A9: 乏燃料离堆贮存 | B9: 0
A10: 乏燃料后处理 | B10: 0
A11: 高放废物的处理处置 | B11: 0
A12: 乏燃料后处理厂的建设、运行、改造和退役 | B12: 0
A13: 其他乏燃料处理处置基金支出 | B13: 0
A14: 文化旅游体育与传媒支出 | B14: =SUM(XFD15,XFD21,XFD27) -> 167
A15: 国家电影事业发展专项资金安排的支出 | B15: =SUM(XFD16:XFD20) -> 167
A16: 资助国产影片放映 | B16: 61
A17: 资助影院建设 | B17: 30
A18: 资助少数民族语电影译制 | B18: 0
A19: 购买农村电影公益性放映版权服务 | B19: 0
A20: 其他国家电影事业发展专项资金支出 | B20: 76
A21: 旅游发展基金支出 | B21: =SUM(XFD22:XFD26) -> 0
A22: 宣传促销 | B22: 0
A23: 行业规划 | B23: 0
A24: 旅游事业补助 | B24: 0
A25: 地方旅游开发项目补助 | B25: 0
A26: 其他旅游发展基金支出 | B26: 0
A27: 国家电影事业发展专项资金对应专项债务收入安排的支出 | B27: =SUM(XFD28:XFD29) -> 0
A28: 资助城市影院 | B28: 0
A29: 其他国家电影事业发展专项资金对应专项债务收入支出 | B29: 0
A30: 社会保障和就业支出 | B30: =SUM(XFD31,XFD35,XFD39) -> 10,281
A31: 大中型水库移民后期扶持基金支出 | B31: =SUM(XFD32:XFD34) -> 10,281
A32: 移民补助 | B32: 7,808
A33: 基础设施建设和经济发展 | B33: 2,473
A34: 其他大中型水库移民后期扶持基金支出 | B34: 0
A35: 小型水库移民扶助基金安排的支出 | B35: =SUM(XFD36:XFD38) -> 0
A36: 移民补助 | B36: 0
A37: 基础设施建设和经济发展 | B37: 0
A38: 其他小型水库移民扶助基金支出 | B38: 0
A39: 小型水库移民扶助基金对应专项债务收入安排的支出 | B39: =SUM(XFD40:XFD41) -> 0
A40: 基础设施建设和经济发展 | B40: 0
A41: 其他小型水库移民扶助基金对应专项债务收入安排的支出 | B41: 0
A42: 节能环保支出 | B42: =SUM(XFD43,XFD48) -> 0
A43: 可再生能源电价附加收入安排的支出 | B43: =SUM(XFD44:XFD47) -> 0
A44: 风力发电补助 | B44: 0
A45: 太阳能发电补助 | B45: 0
A46: 生物质能发电补助 | B46: 0
A47: 其他可再生能源电价附加收入安排的支出 | B47: 0
A48: 废弃电器电子产品处理基金支出 | B48: =SUM(XFD49:XFD52) -> 0
A49: 回收处理费用补贴 | B49: 0
A50: 信息系统建设 | B50: 0
A51: 基金征管经费 | B51: 0
A52: 其他废弃电器电子产品处理基金支出 | B52: 0
A53: 城乡社区支出 | B53: =SUM(XFD54,XFD70,XFD74:XFD75,XFD81,XFD85,XFD89,XFD93,XFD99,XFD102) -> 256,988
A54: 国有土地使用权出让收入安排的支出 | B54: =SUM(XFD55:XFD69) -> 183,446
A55: 征地和拆迁补偿支出 | B55: 37,095
A56: 土地开发支出 | B56: 29,182
A57: 城市建设支出 | B57: 28,937
A58: 农村基础设施建设支出 | B58: 5,941
A59: 补助被征地农民支出 | B59: 5,000
A60: 土地出让业务支出 | B60: 1,483
A61: 廉租住房支出 | B61: 0
A62: 支付破产或改制企业职工安置费 | B62: 0
A63: 棚户区改造支出 | B63: 0
A64: 公共租赁住房支出 | B64: 0
A65: 保障性住房租金补贴 | B65: 0
A66: 农业生产发展支出 | B66: 0
A67: 农村社会事业支出 | B67: 0
A68: 农业农村生态环境支出 | B68: 0
A69: 其他国有土地使用权出让收入安排的支出 | B69: 75,808
A70: 国有土地收益基金安排的支出 | B70: =SUM(XFD71:XFD73) -> 6,589
A71: 征地和拆迁补偿支出 | B71: 4,661
A72: 土地开发支出 | B72: 0
A73: 其他国有土地收益基金支出 | B73: 1,928
A74: 农业土地开发资金安排的支出 | B74: 0
A75: 城市基础设施配套费安排的支出 | B75: =SUM(XFD76:XFD80) -> 14,298
A76: 城市公共设施 | B76: 2,721
A77: 城市环境卫生 | B77: 7,086
A78: 公有房屋 | B78: 0
A79: 城市防洪 | B79: 69
A80: 其他城市基础设施配套费安排的支出 | B80: 4,422
A81: 污水处理费安排的支出 | B81: =SUM(XFD82:XFD84) -> 3,855
A82: 污水处理设施建设和运营 | B82: 3,855
A83: 代征手续费 | B83: 0
A84: 其他污水处理费安排的支出 | B84: 0
A85: 土地储备专项债券收入安排的支出 | B85: =SUM(XFD86:XFD88) -> 0
A86: 征地和拆迁补偿支出 | B86: 0
A87: 土地开发支出 | B87: 0
A88: 其他土地储备专项债券收入安排的支出 | B88: 0
A89: 棚户区改造专项债券收入安排的支出 | B89: =SUM(XFD90:XFD92) -> 48,800
A90: 征地和拆迁补偿支出 | B90: 0
A91: 土地开发支出 | B91: 0
A92: 其他棚户区改造专项债券收入安排的支出 | B92: 48,800
A93: 城市基础设施配套费对应专项债务收入安排的支出 | B93: =SUM(XFD94:XFD98) -> 0
A94: 城市公共设施 | B94: 0
A95: 城市环境卫生 | B95: 0
A96: 公有房屋 | B96: 0
A97: 城市防洪 | B97: 0
A98: 其他城市基础设施配套费对应专项债务收入安排的支出 | B98: 0
A99: 污水处理费对应专项债务收入安排的支出 | B99: =SUM(XFD100:XFD101) -> 0
A100: 污水处理设施建设和运营 | B100: 0
A101: 其他污水处理费对应专项债务收入安排的支出 | B101: 0
A102: 国有土地使用权出让收入对应专项债务收入安排的支出 | B102: =SUM(XFD103:XFD110) -> 0
A103: 征地和拆迁补偿支出 | B103: 0
A104: 土地开发支出 | B104: 0
A105: 城市建设支出 | B105: 0
A106: 农村基础设施建设支出 | B106: 0
A107: 廉租住房支出 | B107: 0
A108: 棚户区改造支出 | B108: 0
A109: 公共租赁住房支出 | B109: 0
A110: 其他国有土地使用权出让收入对应专项债务收入安排的支出 | B110: 0
A111: 农林水支出 | B111: =SUM(XFD112,XFD117,XFD122,XFD127,XFD130) -> 381
A112: 大中型水库库区基金安排的支出 | B112: =SUM(XFD113:XFD116) -> 381
A113: 基础设施建设和经济发展 | B113: 381
A114: 解决移民遗留问题 | B114: 0
A115: 库区防护工程维护 | B115: 0
A116: 其他大中型水库库区基金支出 | B116: 0
A117: 三峡水库库区基金支出 | B117: =SUM(XFD118:XFD121) -> 0
A118: 基础设施建设和经济发展 | B118: 0
A119: 解决移民遗留问题 | B119: 0
A120: 库区维护和管理 | B120: 0
A121: 其他三峡水库库区基金支出 | B121: 0
A122: 国家重大水利工程建设基金安排的支出 | B122: =SUM(XFD123:XFD126) -> 0
A123: 南水北调工程建设 | B123: 0
A124: 三峡后续工作 | B124: 0
A125: 地方重大水利工程建设 | B125: 0
A126: 其他重大水利工程建设基金支出 | B126: 0
A127: 大中型水库库区基金对应专项债务收入安排的支出 | B127: =SUM(XFD128:XFD129) -> 0
A128: 基础设施建设和经济发展 | B128: 0
A129: 其他大中型水库库区基金对应专项债务收入支出 | B129: 0
A130: 国家重大水利工程建设基金对应专项债务收入安排的支出 | B130: =SUM(XFD131:XFD134) -> 0
A131: 南水北调工程建设 | B131: 0
A132: 三峡工程后续工作 | B132: 0
A133: 地方重大水利工程建设 | B133: 0
A134: 其他重大水利工程建设基金对应专项债务收入支出 | B134: 0
A135: 交通运输支出 | B135: =SUM(XFD136,XFD141,XFD146,XFD155,XFD162,XFD171,XFD174,XFD177) -> 0
A136: 海南省高等级公路车辆通行附加费安排的支出 | B136: =SUM(XFD137:XFD140) -> 0
A137: 公路建设 | B137: 0
A138: 公路养护 | B138: 0
A139: 公路还贷 | B139: 0
A140: 其他海南省高等级公路车辆通行附加费安排的支出 | B140: 0
A141: 车辆通行费安排的支出 | B141: =SUM(XFD142:XFD145) -> 0
A142: 公路还贷 | B142: 0
A143: 政府还贷公路养护 | B143: 0
A144: 政府还贷公路管理 | B144: 0
A145: 其他车辆通行费安排的支出 | B145: 0
A146: 铁路建设基金支出 | B146: =SUM(XFD147:XFD154) -> 0
A147: 铁路建设投资 | B147: 0
A148: 购置铁路机车车辆 | B148: 0
A149: 铁路还贷 | B149: 0
A150: 建设项目铺底资金 | B150: 0
A151: 勘测设计 | B151: 0
A152: 注册资本金 | B152: 0
A153: 周转资金 | B153: 0
A154: 其他铁路建设基金支出 | B154: 0
A155: 船舶油污损害赔偿基金支出 | B155: =SUM(XFD156:XFD161) -> 0
A156: 应急处置费用 | B156: 0
A157: 控制清除污染 | B157: 0
A158: 损失补偿 | B158: 0
A159: 生态恢复 | B159: 0
A160: 监视监测 | B160: 0
A161: 其他船舶油污损害赔偿基金支出 | B161: 0
A162: 民航发展基金支出 | B162: =SUM(XFD163:XFD170) -> 0
A163: 民航机场建设 | B163: 0
A164: 空管系统建设 | B164: 0
A165: 民航安全 | B165: 0
A166: 航线和机场补贴 | B166: 0
A167: 民航节能减排 | B167: 0
A168: 通用航空发展 | B168: 0
A169: 征管经费 | B169: 0
A170: 其他民航发展基金支出 | B170: 0
A171: 海南省高等级公路车辆通行附加费对应专项债务收入安排的支出 | B171: =SUM(XFD172:XFD173) -> 0
A172: 公路建设 | B172: 0
A173: 其他海南省高等级公路车辆通行附加费对应专项债务收入安排的支出 | B173: 0
A174: 政府收费公路专项债券收入安排的支出 | B174: =SUM(XFD175:XFD176) -> 0
A175: 公路建设 | B175: 0
A176: 其他政府收费公路专项债券收入安排的支出 | B176: 0
A177: 车辆通行费对应专项债务收入安排的支出 | B177: 0
A178: 资源勘探工业信息等支出 | B178: =XFD179 -> 0
A179: 农网还贷资金支出 | B179: =SUM(XFD180:XFD182) -> 0
A180: 中央农网还贷资金支出 | B180: 0
A181: 地方农网还贷资金支出 | B181: 0
A182: 其他农网还贷资金支出 | B182: 0
A183: 金融支出 | B183: =XFD184 -> 0
A184: 金融调控支出 | B184: =SUM(XFD185:XFD186) -> 0
A185: 中央特别国债经营基金支出 | B185: 0
A186: 中央特别国债经营基金财务支出 | B186: 0
A187: 其他支出 | B187: =SUM(XFD188,XFD192,XFD201:XFD202) -> 324,073
A188: 其他政府性基金及对应专项债务收入安排的支出 | B188: =SUM(XFD189:XFD191) -> 318,733
A189: 其他政府性基金安排的支出 | B189: 50
A190: 其他地方自行试点项目收益专项债券收入安排的支出 | B190: 318,683
A191: 其他政府性基金债务收入安排的支出 | B191: 0
A192: 彩票发行销售机构业务费安排的支出 | B192: =SUM(XFD193:XFD200) -> 0
A193: 福利彩票发行机构的业务费支出 | B193: 0
A194: 体育彩票发行机构的业务费支出 | B194: 0
A195: 福利彩票销售机构的业务费支出 | B195: 0
A196: 体育彩票销售机构的业务费支出 | B196: 0
A197: 彩票兑奖周转金支出 | B197: 0
A198: 彩票发行销售风险基金支出 | B198: 0
A199: 彩票市场调控资金支出 | B199: 0
A200: 其他彩票发行销售机构业务费安排的支出 | B200: 0
A201: 抗疫特别国债财务基金支出 | B201: 0
... 67 more rows

Sheet 12.市本级政府性基金收入决算表
A1: 2022年度随州市本级政府性基金预算收入决算明细表
A2: 单位:万元
A3: 预算科目 | B3: 决算数
A4: 政府性基金预算收入 | B4: =SUM(XFD5,XFD55) -> 120,288
A5: 政府性基金收入(款) | B5: =SUM(XFD6,XFD9:XFD16,XFD22:XFD23,XFD26:XFD29,XFD32:XFD34,XFD37:XFD41,XFD44:XFD45,XFD53:XFD54) -> 99,534
A6: 农网还贷资金收入 | B6: =SUM(XFD7:XFD8) -> 0
A7: 中央农网还贷资金收入 | B7: 0
A8: 地方农网还贷资金收入 | B8: 0
A9: 铁路建设基金收入 | B9: 0
A10: 民航发展基金收入 | B10: 0
A11: 海南省高等级公路车辆通行附加费收入 | B11: 0
A12: 旅游发展基金收入 | B12: 0
A13: 国家电影事业发展专项资金收入 | B13: 0
A14: 国有土地收益基金收入 | B14: 0
A15: 农业土地开发资金收入 | B15: 0
A16: 国有土地使用权出让收入 | B16: =SUM(XFD17:XFD21) -> 94,737
A17: 土地出让价款收入 | B17: 95,885
A18: 补缴的土地价款 | B18: 435
A19: 划拨土地收入 | B19: 0
A20: 缴纳新增建设用地土地有偿使用费 | B20: -1,583
A21: 其他土地出让收入 | B21: 0
A22: 大中型水库移民后期扶持基金收入 | B22: 0
A23: 大中型水库库区基金收入 | B23: =SUM(XFD24:XFD25) -> 0
A24: 中央大中型水库库区基金收入 | B24: 0
A25: 地方大中型水库库区基金收入 | B25: 0
A26: 三峡水库库区基金收入 | B26: 0
A27: 中央特别国债经营基金收入 | B27: 0
A28: 中央特别国债经营基金财务收入 | B28: 0
A29: 彩票公益金收入 | B29: =SUM(XFD30:XFD31) -> 0
A30: 福利彩票公益金收入 | B30: 0
A31: 体育彩票公益金收入 | B31: 0
A32: 城市基础设施配套费收入 | B32: 1,877
A33: 小型水库移民扶助基金收入 | B33: 0
A34: 国家重大水利工程建设基金收入 | B34: =SUM(XFD35:XFD36) -> 0
A35: 中央重大水利工程建设资金 | B35: 0
A36: 地方重大水利工程建设资金 | B36: 0
A37: 车辆通行费 | B37: 0
A38: 核电站乏燃料处理处置基金收入 | B38: 0
A39: 可再生能源电价附加收入 | B39: 0
A40: 船舶油污损害赔偿基金收入 | B40: 0
A41: 废弃电器电子产品处理基金收入 | B41: =SUM(XFD42:XFD43) -> 0
A42: 税务部门征收的废弃电器电子产品处理基金收入 | B42: 0
A43: 海关征收的废弃电器电子产品处理基金收入 | B43: 0
A44: 污水处理费收入 | B44: 2,920
A45: 彩票发行机构和彩票销售机构的业务费用 | B45: =SUM(XFD46:XFD52) -> 0
A46: 福利彩票发行机构的业务费用 | B46: 0
A47: 体育彩票发行机构的业务费用 | B47: 0
A48: 福利彩票销售机构的业务费用 | B48: 0
A49: 体育彩票销售机构的业务费用 | B49: 0
A50: 彩票兑奖周转金 | B50: 0
A51: 彩票发行销售风险基金 | B51: 0
A52: 彩票市场调控资金收入 | B52: 0
A53: 抗疫特别国债财务基金收入 | B53: 0
A54: 其他政府性基金收入 | B54: 0
A55: 专项债务对应项目专项收入 | B55: =SUM(XFD56:XFD58,XFD62:XFD67,XFD70:XFD71) -> 20,754
A56: 海南省高等级公路车辆通行附加费专项债务对应项目专项收入 | B56: 0
A57: 国家电影事业发展专项资金专项债务对应项目专项收入 | B57: 0
A58: 国有土地使用权出让金专项债务对应项目专项收入 | B58: =SUM(XFD59:XFD61) -> 17,735
A59: 土地储备专项债券对应项目专项收入 | B59: 0
A60: 棚户区改造专项债券对应项目专项收入 | B60: 3,146
A61: 其他国有土地使用权出让金专项债务对应项目专项收入 | B61: 14,589
A62: 农业土地开发资金专项债务对应项目专项收入 | B62: 0
A63: 大中型水库库区基金专项债务对应项目专项收入 | B63: 0
A64: 城市基础设施配套费专项债务对应项目专项收入 | B64: 0
A65: 小型水库移民扶助基金专项债务对应项目专项收入 | B65: 0
A66: 国家重大水利工程建设基金专项债务对应项目专项收入 | B66: 0
A67: 车辆通行费专项债务对应项目专项收入 | B67: =SUM(XFD68:XFD69) -> 0
A68: 政府收费公路专项债券对应项目专项收入 | B68: 0
A69: 其他车辆通行费专项债务对应项目专项收入 | B69: 0
A70: 污水处理费专项债务对应项目专项收入 | B70: 0
A71: 其他政府性基金专项债务对应项目专项收入 | B71: =SUM(XFD72:XFD73) -> 3,019
A72: 其他地方自行试点项目收益专项债券对应项目专项收入 | B72: 3,019
A73: 其他政府性基金专项债务对应项目专项收入 | B73: 0

Sheet 13.市本级政府性基金支出决算表
A1: 2022年度随州市本级政府性基金预算支出决算功能分类明细表
A3: 单位:万元
A4: 预算科目 | B4: 决算数
A5: 政府性基金预算支出 | B5: =SUM(XFD6,XFD14,XFD30,XFD42,XFD53,XFD111,XFD135,XFD178,XFD183,XFD187,XFD214,XFD231,XFD248) -> 239,689
A6: 科学技术支出 | B6: =XFD7 -> 0
A7: 核电站乏燃料处理处置基金支出 | B7: =SUM(XFD8:XFD13) -> 0
A8: 乏燃料运输 | B8: 0
A9: 乏燃料离堆贮存 | B9: 0
A10: 乏燃料后处理 | B10: 0
A11: 高放废物的处理处置 | B11: 0
A12: 乏燃料后处理厂的建设、运行、改造和退役 | B12: 0
A13: 其他乏燃料处理处置基金支出 | B13: 0
A14: 文化旅游体育与传媒支出 | B14: =SUM(XFD15,XFD21,XFD27) -> 10
A15: 国家电影事业发展专项资金安排的支出 | B15: =SUM(XFD16:XFD20) -> 10
A16: 资助国产影片放映 | B16: 0
A17: 资助影院建设 | B17: 0
A18: 资助少数民族语电影译制 | B18: 0
A19: 购买农村电影公益性放映版权服务 | B19: 0
A20: 其他国家电影事业发展专项资金支出 | B20: 10
A21: 旅游发展基金支出 | B21: =SUM(XFD22:XFD26) -> 0
A22: 宣传促销 | B22: 0
A23: 行业规划 | B23: 0
A24: 旅游事业补助 | B24: 0
A25: 地方旅游开发项目补助 | B25: 0
A26: 其他旅游发展基金支出 | B26: 0
A27: 国家电影事业发展专项资金对应专项债务收入安排的支出 | B27: =SUM(XFD28:XFD29) -> 0
A28: 资助城市影院 | B28: 0
A29: 其他国家电影事业发展专项资金对应专项债务收入支出 | B29: 0
A30: 社会保障和就业支出 | B30: =SUM(XFD31,XFD35,XFD39) -> 0
A31: 大中型水库移民后期扶持基金支出 | B31: =SUM(XFD32:XFD34) -> 0
A32: 移民补助 | B32: 0
A33: 基础设施建设和经济发展 | B33: 0
A34: 其他大中型水库移民后期扶持基金支出 | B34: 0
A35: 小型水库移民扶助基金安排的支出 | B35: =SUM(XFD36:XFD38) -> 0
A36: 移民补助 | B36: 0
A37: 基础设施建设和经济发展 | B37: 0
A38: 其他小型水库移民扶助基金支出 | B38: 0
A39: 小型水库移民扶助基金对应专项债务收入安排的支出 | B39: =SUM(XFD40:XFD41) -> 0
A40: 基础设施建设和经济发展 | B40: 0
A41: 其他小型水库移民扶助基金对应专项债务收入安排的支出 | B41: 0
A42: 节能环保支出 | B42: =SUM(XFD43,XFD48) -> 0
A43: 可再生能源电价附加收入安排的支出 | B43: =SUM(XFD44:XFD47) -> 0
A44: 风力发电补助 | B44: 0
A45: 太阳能发电补助 | B45: 0
A46: 生物质能发电补助 | B46: 0
A47: 其他可再生能源电价附加收入安排的支出 | B47: 0
A48: 废弃电器电子产品处理基金支出 | B48: =SUM(XFD49:XFD52) -> 0
A49: 回收处理费用补贴 | B49: 0
A50: 信息系统建设 | B50: 0
A51: 基金征管经费 | B51: 0
A52: 其他废弃电器电子产品处理基金支出 | B52: 0
A53: 城乡社区支出 | B53: =SUM(XFD54,XFD70,XFD74:XFD75,XFD81,XFD85,XFD89,XFD93,XFD99,XFD102) -> 104,387
A54: 国有土地使用权出让收入安排的支出 | B54: =SUM(XFD55:XFD69) -> 89,152
A55: 征地和拆迁补偿支出 | B55: 7,202
A56: 土地开发支出 | B56: 4,762
A57: 城市建设支出 | B57: 5,143
A58: 农村基础设施建设支出 | B58: 0
A59: 补助被征地农民支出 | B59: 0
A60: 土地出让业务支出 | B60: 1,377
A61: 廉租住房支出 | B61: 0
A62: 支付破产或改制企业职工安置费 | B62: 0
A63: 棚户区改造支出 | B63: 0
A64: 公共租赁住房支出 | B64: 0
A65: 保障性住房租金补贴 | B65: 0
A66: 农业生产发展支出 | B66: 0
A67: 农村社会事业支出 | B67: 0
A68: 农业农村生态环境支出 | B68: 0
A69: 其他国有土地使用权出让收入安排的支出 | B69: 70,668
A70: 国有土地收益基金安排的支出 | B70: =SUM(XFD71:XFD73) -> 6,589
A71: 征地和拆迁补偿支出 | B71: 4,661
A72: 土地开发支出 | B72: 0
A73: 其他国有土地收益基金支出 | B73: 1,928
A74: 农业土地开发资金安排的支出 | B74: 0
A75: 城市基础设施配套费安排的支出 | B75: =SUM(XFD76:XFD80) -> 4,491
A76: 城市公共设施 | B76: 2,075
A77: 城市环境卫生 | B77: 864
A78: 公有房屋 | B78: 0
A79: 城市防洪 | B79: 0
A80: 其他城市基础设施配套费安排的支出 | B80: 1,552
A81: 污水处理费安排的支出 | B81: =SUM(XFD82:XFD84) -> 2,155
A82: 污水处理设施建设和运营 | B82: 2,155
A83: 代征手续费 | B83: 0
A84: 其他污水处理费安排的支出 | B84: 0
A85: 土地储备专项债券收入安排的支出 | B85: =SUM(XFD86:XFD88) -> 0
A86: 征地和拆迁补偿支出 | B86: 0
A87: 土地开发支出 | B87: 0
A88: 其他土地储备专项债券收入安排的支出 | B88: 0
A89: 棚户区改造专项债券收入安排的支出 | B89: =SUM(XFD90:XFD92) -> 2,000
A90: 征地和拆迁补偿支出 | B90: 0
A91: 土地开发支出 | B91: 0
A92: 其他棚户区改造专项债券收入安排的支出 | B92: 2,000
A93: 城市基础设施配套费对应专项债务收入安排的支出 | B93: =SUM(XFD94:XFD98) -> 0
A94: 城市公共设施 | B94: 0
A95: 城市环境卫生 | B95: 0
A96: 公有房屋 | B96: 0
A97: 城市防洪 | B97: 0
A98: 其他城市基础设施配套费对应专项债务收入安排的支出 | B98: 0
A99: 污水处理费对应专项债务收入安排的支出 | B99: =SUM(XFD100:XFD101) -> 0
A100: 污水处理设施建设和运营 | B100: 0
A101: 其他污水处理费对应专项债务收入安排的支出 | B101: 0
A102: 国有土地使用权出让收入对应专项债务收入安排的支出 | B102: =SUM(XFD103:XFD110) -> 0
A103: 征地和拆迁补偿支出 | B103: 0
A104: 土地开发支出 | B104: 0
A105: 城市建设支出 | B105: 0
A106: 农村基础设施建设支出 | B106: 0
A107: 廉租住房支出 | B107: 0
A108: 棚户区改造支出 | B108: 0
A109: 公共租赁住房支出 | B109: 0
A110: 其他国有土地使用权出让收入对应专项债务收入安排的支出 | B110: 0
A111: 农林水支出 | B111: =SUM(XFD112,XFD117,XFD122,XFD127,XFD130) -> 0
A112: 大中型水库库区基金安排的支出 | B112: =SUM(XFD113:XFD116) -> 0
A113: 基础设施建设和经济发展 | B113: 0
A114: 解决移民遗留问题 | B114: 0
A115: 库区防护工程维护 | B115: 0
A116: 其他大中型水库库区基金支出 | B116: 0
A117: 三峡水库库区基金支出 | B117: =SUM(XFD118:XFD121) -> 0
A118: 基础设施建设和经济发展 | B118: 0
A119: 解决移民遗留问题 | B119: 0
A120: 库区维护和管理 | B120: 0
A121: 其他三峡水库库区基金支出 | B121: 0
A122: 国家重大水利工程建设基金安排的支出 | B122: =SUM(XFD123:XFD126) -> 0
A123: 南水北调工程建设 | B123: 0
A124: 三峡后续工作 | B124: 0
A125: 地方重大水利工程建设 | B125: 0
A126: 其他重大水利工程建设基金支出 | B126: 0
A127: 大中型水库库区基金对应专项债务收入安排的支出 | B127: =SUM(XFD128:XFD129) -> 0
A128: 基础设施建设和经济发展 | B128: 0
A129: 其他大中型水库库区基金对应专项债务收入支出 | B129: 0
A130: 国家重大水利工程建设基金对应专项债务收入安排的支出 | B130: =SUM(XFD131:XFD134) -> 0
A131: 南水北调工程建设 | B131: 0
A132: 三峡工程后续工作 | B132: 0
A133: 地方重大水利工程建设 | B133: 0
A134: 其他重大水利工程建设基金对应专项债务收入支出 | B134: 0
A135: 交通运输支出 | B135: =SUM(XFD136,XFD141,XFD146,XFD155,XFD162,XFD171,XFD174,XFD177) -> 0
A136: 海南省高等级公路车辆通行附加费安排的支出 | B136: =SUM(XFD137:XFD140) -> 0
A137: 公路建设 | B137: 0
A138: 公路养护 | B138: 0
A139: 公路还贷 | B139: 0
A140: 其他海南省高等级公路车辆通行附加费安排的支出 | B140: 0
A141: 车辆通行费安排的支出 | B141: =SUM(XFD142:XFD145) -> 0
A142: 公路还贷 | B142: 0
A143: 政府还贷公路养护 | B143: 0
A144: 政府还贷公路管理 | B144: 0
A145: 其他车辆通行费安排的支出 | B145: 0
A146: 铁路建设基金支出 | B146: =SUM(XFD147:XFD154) -> 0
A147: 铁路建设投资 | B147: 0
A148: 购置铁路机车车辆 | B148: 0
A149: 铁路还贷 | B149: 0
A150: 建设项目铺底资金 | B150: 0
A151: 勘测设计 | B151: 0
A152: 注册资本金 | B152: 0
A153: 周转资金 | B153: 0
A154: 其他铁路建设基金支出 | B154: 0
A155: 船舶油污损害赔偿基金支出 | B155: =SUM(XFD156:XFD161) -> 0
A156: 应急处置费用 | B156: 0
A157: 控制清除污染 | B157: 0
A158: 损失补偿 | B158: 0
A159: 生态恢复 | B159: 0
A160: 监视监测 | B160: 0
A161: 其他船舶油污损害赔偿基金支出 | B161: 0
A162: 民航发展基金支出 | B162: =SUM(XFD163:XFD170) -> 0
A163: 民航机场建设 | B163: 0
A164: 空管系统建设 | B164: 0
A165: 民航安全 | B165: 0
A166: 航线和机场补贴 | B166: 0
A167: 民航节能减排 | B167: 0
A168: 通用航空发展 | B168: 0
A169: 征管经费 | B169: 0
A170: 其他民航发展基金支出 | B170: 0
A171: 海南省高等级公路车辆通行附加费对应专项债务收入安排的支出 | B171: =SUM(XFD172:XFD173) -> 0
A172: 公路建设 | B172: 0
A173: 其他海南省高等级公路车辆通行附加费对应专项债务收入安排的支出 | B173: 0
A174: 政府收费公路专项债券收入安排的支出 | B174: =SUM(XFD175:XFD176) -> 0
A175: 公路建设 | B175: 0
A176: 其他政府收费公路专项债券收入安排的支出 | B176: 0
A177: 车辆通行费对应专项债务收入安排的支出 | B177: 0
A178: 资源勘探工业信息等支出 | B178: =XFD179 -> 0
A179: 农网还贷资金支出 | B179: =SUM(XFD180:XFD182) -> 0
A180: 中央农网还贷资金支出 | B180: 0
A181: 地方农网还贷资金支出 | B181: 0
A182: 其他农网还贷资金支出 | B182: 0
A183: 金融支出 | B183: =XFD184 -> 0
A184: 金融调控支出 | B184: =SUM(XFD185:XFD186) -> 0
A185: 中央特别国债经营基金支出 | B185: 0
A186: 中央特别国债经营基金财务支出 | B186: 0
A187: 其他支出 | B187: =SUM(XFD188,XFD192,XFD201:XFD202) -> 117,669
A188: 其他政府性基金及对应专项债务收入安排的支出 | B188: =SUM(XFD189:XFD191) -> 115,695
A189: 其他政府性基金安排的支出 | B189: 50
A190: 其他地方自行试点项目收益专项债券收入安排的支出 | B190: 115,645
A191: 其他政府性基金债务收入安排的支出 | B191: 0
A192: 彩票发行销售机构业务费安排的支出 | B192: =SUM(XFD193:XFD200) -> 0
A193: 福利彩票发行机构的业务费支出 | B193: 0
A194: 体育彩票发行机构的业务费支出 | B194: 0
A195: 福利彩票销售机构的业务费支出 | B195: 0
A196: 体育彩票销售机构的业务费支出 | B196: 0
A197: 彩票兑奖周转金支出 | B197: 0
A198: 彩票发行销售风险基金支出 | B198: 0
A199: 彩票市场调控资金支出 | B199: 0
A200: 其他彩票发行销售机构业务费安排的支出 | B200: 0
A201: 抗疫特别国债财务基金支出 | B201: 0
... 67 more rows

Sheet 14.政府性基金专项转移支付分地区、分项目决算表
A1: 2022年市本级对下专项转移支付分地区、分项目决算表
F2: 单位：万元
A3: 项目名称 | B3: 随州市本级
B4: 合计 | C4: 市本级 | D4: 曾都区 | E4: 高新区 | F4: 大洪山
A5: 政府性基金 | B5: =XFD6+XFD11+XFD14+XFD18+XFD21 -> 6,671.00 | C5: =XFD6+XFD11+XFD14+XFD18+XFD21 -> 2,479.00 | D5: =XFD6+XFD11+XFD14+XFD18+XFD21+XFD46 -> 5,984.00 | E5: -1,719.00 | F5: -73.00
A6: [207]文化旅游体育与传媒支出 | B6: =XFD6+XFD6+XFD6+XFD6 -> 67.00 | C6: 10.00 | D6: 57.00
A7: 国家电影事业发展专项资金 | B7: 67.00 | C7: 10.00 | D7: 57.00
A8: 省级体育转移支付补助经费 | B8: 0.00
A9: 体育产业转移支付资金 | B9: 0.00
A10: 旅游发展基金中央补助地方项目资金 | B10: 0.00
A11: [208]社会保障和就业支出 | B11: 2,446.00 | D11: 2,140.00 | E11: 306.00
A12: 中央水库移民扶持基金 | B12: 2,446.00 | D12: 2,140.00 | E12: 306.00
A13: 大中型水库移民后期扶持基金 | B13: 0.00
A14: [213]农林水支出 | B14: 600.00 | D14: 600.00
A15: 中央水库移民扶持基金 | B15: 0.00
A16: 省大中型水库库区基金 | B16: 600.00 | D16: 600.00
A17: 国家重大水利工程建设基金 | B17: 0.00
A18: [214]交通运输支出 | B18: 0.00
A19: 港口建设费支持港口航道公共基础设施建设 | B19: 0.00
A20: 民航发展基金用于民航基础设施建设和机场航线补贴资金 | B20: 0.00
A21: [229]其他支出 | B21: 3,558.00 | C21: 2,469.00 | D21: 843.00 | E21: 230.00 | F21: 16.00
A22: 福彩业务费市县转移支付 | B22: 0.00
A23: 福彩公益金市县分成 | B23: 1,032.00 | C23: 998.00 | D23: 34.00
A24: 体彩公益金市县分成 | B24: 1,087.00 | C24: 919.00 | D24: 168.00
A25: 中央集中彩票公益金支持体育事业专项资金 | B25: 17.00 | C25: 17.00
A26: 中央集中彩票公益金支持社会福利事业专项资金 | B26: 151.00 | C26: 45.00 | D26: 4.00 | E26: 102.00
A27: 残疾人事业发展补助资金 | B27: 6.00 | D27: 5.00 | E27: 1.00
A28: 体育企业纾困资金 | B28: 0.00
A29: 中央财政医疗救助补助资金 | B29: -59.00 | D29: -16.00 | E29: -35.00 | F29: -8.00
A30: 中央专项彩票公益金支持贫困革命老区脱贫攻坚资金 | B30: 0.00
A31: 中央专项彩票公益金支持地方社会公益事业发展资金 | B31: 263.00 | C31: 1.00 | D31: 193.00 | E31: 68.00 | F31: 1.00
A32: 中央专项彩票公益金支持乡村学校少年宫项目 | B32: 0.00
A33: 中央专项彩票公益金支持开展居家和社区养老服务改革试点补助资金 | B33: 0.00
A34: 中央专项彩票公益金支持残疾人事业发展补助资金 | B34: 72.00 | D34: 57.00 | E34: 15.00
A35: 中央专项彩票公益金支持城乡医疗救助资金 | B35: 125.00 | C35: 6.00 | D35: 68.00 | E35: 42.00 | F35: 9.00
A36: 困难群众等民政对象救助补助资金 | B36: 0.00
A37: 红十字事业发展补助资金 | B37: 30.00 | C37: 15.00 | D37: 15.00
A38: 社会服务机构建设管理补助资金 | B38: 0.00
A39: 社会服务管理事务支出补助资金 | B39: 0.00
A40: “惠动湖北”消费券 | B40: 43.00 | C40: 43.00
A41: 省级体育产业发展引导资金 | B41: 213.00 | C41: 213.00
A42: 省级自然灾害生活救助金及防灾减灾体系建设经费 | B42: 0.00
A43: 实施全民健身计划及群众体育组织 | B43: 0.00
A44: 省级体育转移支付补助经费 | B44: 0.00
A45: 省级民政一般性转移支付资金 | B45: 578.00 | C45: 212.00 | D45: 315.00 | E45: 37.00 | F45: 14.00
A46: [232]付息支出 | B46: 0.00 | D46: 2,344.00 | E46: -2,255.00 | F46: -89.00
A47: 国有土地使用权出让金付息 | B47: 0.00 | D47: 2,255.00 | E47: -2,255.00
A48: 其他地方自行试点项目收益专项 债券付息支出 | B48: 0.00 | D48: 89.00 | F48: -89.00
A49: 说明：曾都区、高新区、大洪山有付息支出专项转移支付，主要是根据债务处下发《省财政厅关于2022年批准部分地区债券划转事项的函》）（鄂财函〔2022〕210号）文件，将随州市本级对大洪山高新区历年二次转贷债务余额全部划转至曾都区，对应的高新区大洪山2022年专项债务付息同步调整到曾都区列支，通过付息支出专项转移支出调整数据。

Sheet 15.全市专项债务限额和余额情况表
A2: 全市2022年地方政府专项债务限额余额表
A3: 单位：万元
A4: 地 区 | B4: 专项债务
B5: 余额 | C5: 限额
A6: 随州市 | B6: 1251685 | C6: 1251689
A7: 随州市本级 | B7: 529209 | C7: 529209
A8: 曾都区 | B8: 255661 | C8: 255665
A9: 随县 | B9: 256813 | C9: 256813
A10: 广水市 | B10: 210002 | C10: 210002
A11: 债务情况说明： 1、全市政府债务限额情况。截至2022年底，省核定全市政府债务限额241.17亿元，其中：一般债务116亿元，专项债务125.17亿元。分地区情况为：市本级政府债务限额77.96亿元，其中：一般债务25.04亿元，专项债务59.52亿元；县市区政府债务限额163.21亿元，其中：一般债务90.96亿元，专项债务72.25亿元。 2、全市新增政府债务限额情况。2022年，全市新增政府债务限额33.14亿元，其中：一般债务10.74亿元，专项债务23.4亿元。分地区情况为：市本级新增政府债务限额8.06亿元，其中：一般债务2.68亿元，专项债务5.38亿元；县市区新增政府债务限额26.08亿元，其中：一般债务8.06亿元，专项债务18.02亿元。 3、全市政府债务余额情况。截至2022年底，全市政府债务余额228.33亿元，其中：一般债务103.16亿元，专项债务125.17亿元。分地区情况为：市本级政府债务余额72.51亿元，其中：一般债务19.59亿元，专项债务52.92亿元；县市区政府债务余额155.82亿元，其中：一般债务83.57亿元，专项债务72.25亿元。 4、全市新增政府债务情况。2022年，全市新增政府债务44.41亿元，其中：一般债务9.79亿元，专项债务34.62元。分地区情况为：市本级新增政府债务8.04亿元，其中：一般债务0.64亿元，专项债务7.4亿元；县市区新增政府债务36.37亿元，其中：一般债务9.15亿元，专项债务27.22亿元。按照使用领域划分：全市一般债务用于市政建设3.39亿元、道路交通3.18亿元、农林水利1.61亿元、文化教育0.9亿元、自然灾害防治体系建设0.04亿元、医疗卫生0.19亿元、政权建设0.04亿元、社会保障0.32亿元、其他0.12亿元;专项债务用于保障住房5.48亿元、医疗卫生4.12亿元、社会保障3.4亿元、农林水利3.4亿元、市政建设10.96亿元、文化教育6.3亿元、生态环保0.86亿元、其他0.1亿元。 5、全市政府债务还本付息情况。2022年，全市偿还政府债务本息30.85亿元，其中：还本23.77亿元，付息7.08亿元；市本级偿还政府债务本息8.15亿元，其中：还本5.74亿元，付息2.41 亿元；县市区偿还政府债务本息22.7亿元，其中：还本18.04亿元，付息4.66亿元。 6、全市政府债务再融资情况。2022年，全市发行再融资债券为150308万元，其中：一般债券50334万元、专项债券99974万元；2022年随州本级政府再融资债券为19917万元，其中：一般债券2826万元、专项债券17091万元。

Sheet 16.全市国有资本经营收入决算表
A1: 2022年度随州市国有资本经营预算收入决算明细表
B2: 单位:万元
A3: 预算科目 | B3: 决算数
A4: 国有资本经营预算收入 | B4: =XFD5 -> 58,227
A5: 非税收入 | B5: 58,227
A6: 国有资本经营收入 | B6: =XFD7+XFD39+XFD44+XFD50+XFD54 -> 58,227
A7: 利润收入 | B7: =SUM(XFD8:XFD38) -> 24,253
A8: 烟草企业利润收入 | B8: 0
A9: 石油石化企业利润收入 | B9: 0
A10: 电力企业利润收入 | B10: 0
A11: 电信企业利润收入 | B11: 0
A12: 煤炭企业利润收入 | B12: 0
A13: 有色冶金采掘企业利润收入 | B13: 0
A14: 钢铁企业利润收入 | B14: 0
A15: 化工企业利润收入 | B15: 0
A16: 运输企业利润收入 | B16: 0
A17: 电子企业利润收入 | B17: 0
A18: 机械企业利润收入 | B18: 0
A19: 投资服务企业利润收入 | B19: 1,458
A20: 纺织轻工企业利润收入 | B20: 0
A21: 贸易企业利润收入 | B21: 0
A22: 建筑施工企业利润收入 | B22: 0
A23: 房地产企业利润收入 | B23: 0
A24: 建材企业利润收入 | B24: 0
A25: 境外企业利润收入 | B25: 0
A26: 对外合作企业利润收入 | B26: 0
A27: 医药企业利润收入 | B27: 0
A28: 农林牧渔企业利润收入 | B28: 0
A29: 邮政企业利润收入 | B29: 0
A30: 军工企业利润收入 | B30: 0
A31: 转制科研院所利润收入 | B31: 0
A32: 地质勘查企业利润收入 | B32: 0
A33: 卫生体育福利企业利润收入 | B33: 0
A34: 教育文化广播企业利润收入 | B34: 0
A35: 科学研究企业利润收入 | B35: 0
A36: 机关社团所属企业利润收入 | B36: 0
A37: 金融企业利润收入 | B37: 0
A38: 其他国有资本经营预算企业利润收入 | B38: 22,795
A39: 股利、股息收入 | B39: =SUM(XFD40:XFD43) -> 224
A40: 国有控股公司股利、股息收入 | B40: 0
A41: 国有参股公司股利、股息收入 | B41: 224
A42: 金融企业股利、股息收入 | B42: 0
A43: 其他国有资本经营预算企业股利、股息收入 | B43: 0
A44: 产权转让收入 | B44: =SUM(XFD45:XFD49) -> 0
A45: 国有股减持收入 | B45: 0
A46: 国有股权、股份转让收入 | B46: 0
A47: 国有独资企业产权转让收入 | B47: 0
A48: 金融企业产权转让收入 | B48: 0
A49: 其他国有资本经营预算企业产权转让收入 | B49: 0
A50: 清算收入 | B50: =SUM(XFD51:XFD53) -> 0
A51: 国有股权、股份清算收入 | B51: 0
A52: 国有独资企业清算收入 | B52: 0
A53: 其他国有资本经营预算企业清算收入 | B53: 0
A54: 其他国有资本经营预算收入 | B54: 33,750

Sheet 17.全市国有资本经营支出决算表
A1: 2022年度随州市国有资本经营预算支出决算明细表
B2: 单位:万元
A3: 预算科目 | B3: 决算数
A4: 国有资本经营预算支出 | B4: =XFD5+XFD8 -> 45,827
A5: 社会保障和就业支出 | B5: =XFD6 -> 0
A6: 补充全国社会保障基金 | B6: 0
A7: 国有资本经营预算补充社保基金支出 | B7: 0
A8: 国有资本经营预算支出 | B8: =XFD9+XFD20+XFD30+XFD32 -> 45,827
A9: 解决历史遗留问题及改革成本支出 | B9: =SUM(XFD10:XFD19) -> 319
A10: 厂办大集体改革支出 | B10: 0
A11: “三供一业”移交补助支出 | B11: 0
A12: 国有企业办职教幼教补助支出 | B12: 0
A13: 国有企业办公共服务机构移交补助支出 | B13: 0
A14: 国有企业退休人员社会化管理补助支出 | B14: 272
A15: 国有企业棚户区改造支出 | B15: 0
A16: 国有企业改革成本支出 | B16: 0
A17: 离休干部医药费补助支出 | B17: 0
A18: 金融企业改革性支出 | B18: 0
A19: 其他解决历史遗留问题及改革成本支出 | B19: 47
A20: 国有企业资本金注入 | B20: =SUM(XFD21:XFD29) -> 39,771
A21: 国有经济结构调整支出 | B21: 0
A22: 公益性设施投资支出 | B22: 1,021
A23: 前瞻性战略性产业发展支出 | B23: 0
A24: 生态环境保护支出 | B24: 0
A25: 支持科技进步支出 | B25: 0
A26: 保障国家经济安全支出 | B26: 0
A27: 对外投资合作支出 | B27: 0
A28: 金融企业资本性支出 | B28: 0
A29: 其他国有企业资本金注入 | B29: 38,750
A30: 国有企业政策性补贴(款) | B30: =XFD31 -> 0
A31: 国有企业政策性补贴(项) | B31: 0
A32: 其他国有资本经营预算支出(款) | B32: =XFD33 -> 5,737
A33: 其他国有资本经营预算支出(项) | B33: 5,737

Sheet 18.市本级国有资本经营收入决算表
A1: 2022年度随州市本级国有资本经营预算收入决算明细表
B2: 单位:万元
A3: 预算科目 | B3: 决算数
A4: 国有资本经营预算收入 | B4: =XFD5 -> 9,350
A5: 非税收入 | B5: 9,350
A6: 国有资本经营收入 | B6: =XFD7+XFD39+XFD44+XFD50+XFD54 -> 9,350
A7: 利润收入 | B7: =SUM(XFD8:XFD38) -> 9,126
A8: 烟草企业利润收入 | B8: 0
A9: 石油石化企业利润收入 | B9: 0
A10: 电力企业利润收入 | B10: 0
A11: 电信企业利润收入 | B11: 0
A12: 煤炭企业利润收入 | B12: 0
A13: 有色冶金采掘企业利润收入 | B13: 0
A14: 钢铁企业利润收入 | B14: 0
A15: 化工企业利润收入 | B15: 0
A16: 运输企业利润收入 | B16: 0
A17: 电子企业利润收入 | B17: 0
A18: 机械企业利润收入 | B18: 0
A19: 投资服务企业利润收入 | B19: 0
A20: 纺织轻工企业利润收入 | B20: 0
A21: 贸易企业利润收入 | B21: 0
A22: 建筑施工企业利润收入 | B22: 0
A23: 房地产企业利润收入 | B23: 0
A24: 建材企业利润收入 | B24: 0
A25: 境外企业利润收入 | B25: 0
A26: 对外合作企业利润收入 | B26: 0
A27: 医药企业利润收入 | B27: 0
A28: 农林牧渔企业利润收入 | B28: 0
A29: 邮政企业利润收入 | B29: 0
A30: 军工企业利润收入 | B30: 0
A31: 转制科研院所利润收入 | B31: 0
A32: 地质勘查企业利润收入 | B32: 0
A33: 卫生体育福利企业利润收入 | B33: 0
A34: 教育文化广播企业利润收入 | B34: 0
A35: 科学研究企业利润收入 | B35: 0
A36: 机关社团所属企业利润收入 | B36: 0
A37: 金融企业利润收入 | B37: 0
A38: 其他国有资本经营预算企业利润收入 | B38: 9,126
A39: 股利、股息收入 | B39: =SUM(XFD40:XFD43) -> 224
A40: 国有控股公司股利、股息收入 | B40: 0
A41: 国有参股公司股利、股息收入 | B41: 224
A42: 金融企业股利、股息收入 | B42: 0
A43: 其他国有资本经营预算企业股利、股息收入 | B43: 0
A44: 产权转让收入 | B44: =SUM(XFD45:XFD49) -> 0
A45: 国有股减持收入 | B45: 0
A46: 国有股权、股份转让收入 | B46: 0
A47: 国有独资企业产权转让收入 | B47: 0
A48: 金融企业产权转让收入 | B48: 0
A49: 其他国有资本经营预算企业产权转让收入 | B49: 0
A50: 清算收入 | B50: =SUM(XFD51:XFD53) -> 0
A51: 国有股权、股份清算收入 | B51: 0
A52: 国有独资企业清算收入 | B52: 0
A53: 其他国有资本经营预算企业清算收入 | B53: 0
A54: 其他国有资本经营预算收入 | B54: 0

Sheet 19.市本级国有资本经营支出决算表
A1: 2022年度随州市本级国有资本经营预算支出决算明细表
B2: 单位:万元
A3: 预算科目 | B3: 决算数
A4: 国有资本经营预算支出 | B4: =XFD5+XFD8 -> 5,224
A5: 社会保障和就业支出 | B5: =XFD6 -> 0
A6: 补充全国社会保障基金 | B6: 0
A7: 国有资本经营预算补充社保基金支出 | B7: 0
A8: 国有资本经营预算支出 | B8: =XFD9+XFD20+XFD30+XFD32 -> 5,224
A9: 解决历史遗留问题及改革成本支出 | B9: =SUM(XFD10:XFD19) -> 37
A10: 厂办大集体改革支出 | B10: 0
A11: “三供一业”移交补助支出 | B11: 0
A12: 国有企业办职教幼教补助支出 | B12: 0
A13: 国有企业办公共服务机构移交补助支出 | B13: 0
A14: 国有企业退休人员社会化管理补助支出 | B14: 2
A15: 国有企业棚户区改造支出 | B15: 0
A16: 国有企业改革成本支出 | B16: 0
A17: 离休干部医药费补助支出 | B17: 0
A18: 金融企业改革性支出 | B18: 0
A19: 其他解决历史遗留问题及改革成本支出 | B19: 35
A20: 国有企业资本金注入 | B20: =SUM(XFD21:XFD29) -> 0
A21: 国有经济结构调整支出 | B21: 0
A22: 公益性设施投资支出 | B22: 0
A23: 前瞻性战略性产业发展支出 | B23: 0
A24: 生态环境保护支出 | B24: 0
A25: 支持科技进步支出 | B25: 0
A26: 保障国家经济安全支出 | B26: 0
A27: 对外投资合作支出 | B27: 0
A28: 金融企业资本性支出 | B28: 0
A29: 其他国有企业资本金注入 | B29: 0
A30: 国有企业政策性补贴(款) | B30: =XFD31 -> 0
A31: 国有企业政策性补贴(项) | B31: 0
A32: 其他国有资本经营预算支出(款) | B32: =XFD33 -> 5,187
A33: 其他国有资本经营预算支出(项) | B33: 5,187

Sheet 20.国有资本经营预算专项转移支付分地区、分项目决算表
A1: 2022年市本级对下专项转移支付分地区、分项目决算表
A3: 项目名称 | B3: 随州市本级
B4: 合计 | C4: 市本级 | D4: 曾都区 | E4: 广水市 | F4: 随县 | G4: 高新区 | H4: 大洪山
A5: 国有资本经营预算资金 | B5: 91.00 | C5: 2.00 | D5: 89.00 | E5: 0.00 | F5: 0.00 | G5: 0.00 | H5: 0.00
A6: [223]国有资本经营预算支出 | B6: 91.00 | C6: 2.00 | D6: 89.00 | E6: 0.00 | F6: 0.00 | G6: 0.00 | H6: 0.00
A7: 国有企业退休人员社会化管理补助资金 | B7: 91.00 | C7: 2.00 | D7: 89.00

Sheet 21.全市社会保险基金收入决算表
A1: 2022年度随州市社会保险基金预算收入决算表
A2: 单位：万元
A3: 项 目 | B3: 合计 | C3: 企业职工基本养老保险基金 | D3: 城乡居民基本养老保险基金 | E3: 机关事业单位基本养老保险基金 | F3: 职工基本医疗保险(含生育保险)基金 | G3: 城乡居民基本医疗保险基金 | H3: 工伤保险基金 | I3: 失业保险基金
A4: 一、收入 | B4: =SUM(XFD4) -> 563,243 | C4: 0 | D4: 111,792 | E4: 176,955 | F4: 95,747 | G4: 171,245 | H4: 1,582 | I4: 5,922
A5: 其中:社会保险费收入 | B5: 286,540 | C5: 0 | D5: 50,024 | E5: 80,991 | F5: 91,708 | G5: 57,472 | H5: 1,477 | I5: 4,868
A6: 财政补贴收入 | B6: 259,415 | C6: 0 | D6: 58,352 | E6: 89,833 | F6: 102 | G6: 111,128 | H6: 0 | I6: 0
A7: 利息收入 | B7: 9,121 | C7: 0 | D7: 3,264 | E7: 649 | F7: 3,425 | G7: 1,550 | H7: 98 | I7: 135
A8: 委托投资收益 | B8: 0 | C8: 0 | D8: 0 | E8: 0 | F8: 0 | G8: 0 | H8: 0 | I8: 0
A9: 转移收入 | B9: 5,718 | C9: 0 | D9: 66 | E9: 5,478 | F9: 162 | G9: 0 | H9: 0 | I9: 12
A10: 其他收入 | B10: 1,557 | C10: 0 | D10: 85 | E10: 3 | F10: 350 | G10: 1,095 | H10: 7 | I10: 17
A11: 全国统筹调剂资金收入 | B11: 0 | C11: 0 | D11: 0 | E11: 0 | F11: 0 | G11: 0 | H11: 0 | I11: 0

Sheet 22.全市社会保险基金支出决算表
A1: 2022年度随州市社会保险基金预算支出决算表
A2: 单位：万元
A3: 项 目 | B3: 合计 | C3: 企业职工基本养老保险基金 | D3: 城乡居民基本养老保险基金 | E3: 机关事业单位基本养老保险基金 | F3: 职工基本医疗保险(含生育保险)基金 | G3: 城乡居民基本医疗保险基金 | H3: 工伤保险基金 | I3: 失业保险基金
A4: 二、支出 | B4: =SUM(XFD4) -> 485,043 | C4: 0 | D4: 72,962 | E4: 170,774 | F4: 63,394 | G4: 171,006 | H4: 2,915 | I4: 3,992
A5: 其中:社会保险待遇支出 | B5: 461,621 | C5: 0 | D5: 71,689 | E5: 167,933 | F5: 61,982 | G5: 155,942 | H5: 2,796 | I5: 1,279
A6: 转移支出 | B6: 2,634 | C6: 0 | D6: 49 | E6: 2,448 | F6: 136 | G6: 0 | H6: 0 | I6: 1
A7: 其他支出 | B7: 3,547 | C7: 0 | D7: 1,224 | E7: 393 | F7: 1,275 | G7: 326 | H7: 15 | I7: 314
A8: 全国统筹调剂资金支出 | B8: 0 | C8: 0 | D8: 0 | E8: 0 | F8: 0 | G8: 0 | H8: 0 | I8: 0

Sheet 23.市本级社会保险基金收入决算表
A1: 2022年度随州市本级社会保险基金预算收入决算表
A2: 单位：万元
A3: 项 目 | B3: 合计 | C3: 企业职工基本养老保险基金 | D3: 城乡居民基本养老保险基金 | E3: 机关事业单位基本养老保险基金 | F3: 职工基本医疗保险(含生育保险)基金 | G3: 城乡居民基本医疗保险基金 | H3: 工伤保险基金 | I3: 失业保险基金
A4: 一、收入 | B4: =SUM(XFD4) -> 240,801 | C4: 0 | D4: 0 | E4: 33,586 | F4: 31,671 | G4: 171,245 | H4: 1,582 | I4: 2,717
A5: 其中:社会保险费收入 | B5: 109,477 | C5: 0 | D5: 0 | E5: 18,912 | F5: 29,655 | G5: 57,472 | H5: 1,477 | I5: 1,961
A6: 财政补贴收入 | B6: 123,853 | C6: 0 | D6: 0 | E6: 12,725 | F6: 0 | G6: 111,128 | H6: 0 | I6: 0
A7: 利息收入 | B7: 3,485 | C7: 0 | D7: 0 | E7: 107 | F7: 1,680 | G7: 1,550 | H7: 98 | I7: 50
A8: 委托投资收益 | B8: 0 | C8: 0 | D8: 0 | E8: 0 | F8: 0 | G8: 0 | H8: 0 | I8: 0
A9: 转移收入 | B9: 1,892 | C9: 0 | D9: 0 | E9: 1,839 | F9: 53 | G9: 0 | H9: 0 | I9: 0
A10: 其他收入 | B10: 1,400 | C10: 0 | D10: 0 | E10: 3 | F10: 283 | G10: 1,095 | H10: 7 | I10: 12
A11: 全国统筹调剂资金收入 | B11: 0 | C11: 0 | D11: 0 | E11: 0 | F11: 0 | G11: 0 | H11: 0 | I11: 0

Sheet 24.市本级社会保险基金支出决算表
A1: 2022年度随州市本级社会保险基金预算支出决算表
A2: 单位：万元
A3: 项 目 | B3: 合计 | C3: 企业职工基本养老保险基金 | D3: 城乡居民基本养老保险基金 | E3: 机关事业单位基本养老保险基金 | F3: 职工基本医疗保险(含生育保险)基金 | G3: 城乡居民基本医疗保险基金 | H3: 工伤保险基金 | I3: 失业保险基金
A4: 二、支出 | B4: =SUM(XFD4) -> 226,219 | C4: 0 | D4: 0 | E4: 33,062 | F4: 17,723 | G4: 171,006 | H4: 2,915 | I4: 1,513
A5: 其中:社会保险待遇支出 | B5: 209,119 | C5: 0 | D5: 0 | E5: 32,272 | F5: 17,660 | G5: 155,942 | H5: 2,796 | I5: 449
A6: 转移支出 | B6: 728 | C6: 0 | D6: 0 | E6: 665 | F6: 63 | G6: 0 | H6: 0 | I6: 0
A7: 其他支出 | B7: 481 | C7: 0 | D7: 0 | E7: 125 | F7: 0 | G7: 326 | H7: 15 | I7: 15
A8: 全国统筹调剂资金支出 | B8: 0 | C8: 0 | D8: 0 | E8: 0 | F8: 0 | G8: 0 | H8: 0 | I8: 0

Sheet 25.市本级城乡居民基本养老保险基金收支决算表
A1: 2022年市本级城乡居民基本养老保险基金收支决算表
D2: 单位：万元
A3: 项 目 | B3: 决算数 | C3: 项 目 | D3: 决算数
A4: 一、个人缴费收入 | C4: 一、基础养老金支出
A5: 其中：财政为困难人员代缴收入 | C5: 二、个人账户养老金支出
A6: 二、财政补贴收入 | C6: 三、丧葬补助金支出
A7: 其中：财政对基础养老金的补贴 | C7: 四、转移支出
A8: 财政对个人缴费的补贴 | C8: 五、其他支出
A9: 三、集体补助收入
A10: 四、利息收入
A11: 五、委托投资收益
A12: 六、转移收入
A13: 七、其他收入
A14: 八、本年收入小计 | C14: 六、本年支出小计
A15: 九、上级补助收入 | C15: 七、补助下级支出
A16: 十、下级上解收入 | C16: 八、上解上级支出
A17: 十一、本年收入合计 | C17: 九、本年支出合计
C18: 十、本年收支结余
A19: 十二、上年结余 | C19: 十一、年末滚存结余
A20: 总 计 | C20: 总 计
A21: 注：市本级无城乡居民基本养老保险基金

Sheet 26.市本级机关事业单位基本养老保险基金收支决算表
A1: 2022年市本级机关事业单位基本养老保险基金决算表
D2: 单位：万元
A3: 项 目 | B3: 金 额 | C3: 项 目 | D3: 金 额
A4: 一、基本养老保险费收入 | B4: 18912 | C4: 一、基本养老金支出 | D4: 32272
A5: 二、财政补贴收入 | B5: 12725 | C5: 二、转移支出 | D5: 665
A6: 三、利息收入 | B6: 107 | C6: 三、其他支出 | D6: 125
A7: 四、转移收入 | B7: 1839
A8: 五、其他收入 | B8: 3
A9: 六、本年收入小计 | B9: 33586 | C9: 四、本年支出小计 | D9: 33062
A10: 七、上级补助收入 | B10: 0 | C10: 五、补助下级支出 | D10: 0
A11: 八、下级上解收入 | B11: 0 | C11: 六、上解上级支出 | D11: 0
A12: 九、本年收入合计 | B12: 33586 | C12: 七、本年支出合计 | D12: 33062
C13: 八、本年收支结余 | D13: 525
A14: 十、上年结余 | B14: -5559 | C14: 九、年末滚存结余 | D14: -5035
A15: 总 计 | B15: 28027 | C15: 总 计 | D15: 28027

Sheet 27.市本级职工基本医疗保险(含生育保险)基金收支决算表
A1: 2022年市本级职工基本医疗保险(含生育保险)基金收支决算表
H2: 单位：万元
A3: 项 目 | B3: 小 计 | C3: 基本医疗保险统筹基金（含单建统筹） | D3: 基本医疗保险 个人账户基金 | E3: 项 目 | F3: 小 计 | G3: 基本医疗保险统筹基金（含单建统筹） | H3: 基本医疗保险 个人账户基金
A4: 一、基本医疗保险费收入 | B4: 29655 | C4: 22677 | D4: 6979 | E4: 一、基本医疗保险待遇支出 | F4: 17660 | G4: 8731 | H4: 8929
A5: 其中：单位缴费 | B5: 24477 | C5: 22677 | D5: 1800 | E5: 其中：住院费用支出 | F5: 7510 | G5: 6878 | H5: 632
A6: 个人缴费 | B6: 5178 | C6: 0 | D6: 5178 | E6: 门诊费用支出 | F6: 9152 | G6: 869 | H6: 8283
A7: 二、财政补贴收入 | B7: 0 | C7: 0 | E7: 生育医疗费用支出 | F7: 133 | G7: 119 | H7: 14
A8: 其中：对医保基金负担新冠病毒疫苗及接种费用的补助 | B8: 0 | C8: 0 | E8: 生育津贴支出 | F8: 865 | G8: 865
A9: 三、利息收入 | B9: 1680 | C9: 1313 | D9: 366 | E9: 二、转移支出 | F9: 63 | H9: 63
A10: 四、转移收入 | B10: 53 | D10: 53 | E10: 三、其他支出 | F10: 0 | G10: 0 | H10: 0
A11: 五、其他收入 | B11: 283 | C11: 283 | D11: 0
A12: 六、本年收入小计 | B12: 31671 | C12: 24273 | D12: 7398 | E12: 四、本年支出小计 | F12: 17723 | G12: 8731 | H12: 8992
A13: 七、上级补助收入 | B13: 0 | C13: 0 | D13: 0 | E13: 五、补助下级支出 | F13: 0 | G13: 0 | H13: 0
A14: 八、下级上解收入 | B14: 0 | C14: 0 | D14: 0 | E14: 六、上解上级支出 | F14: 0 | G14: 0 | H14: 0
A15: 九、本年收入合计 | B15: 31671 | C15: 24273 | D15: 7398 | E15: 七、本年支出合计 | F15: 17723 | G15: 8731 | H15: 8992
E16: 八、本年收支结余 | F16: 13948 | G16: 15542 | H16: -1594
A17: 十、上年结余 | B17: 76296 | C17: 48538 | D17: 27759 | E17: 九、年末滚存结余 | F17: 90244 | G17: 64080 | H17: 26164
A18: 总 计 | B18: 107968 | C18: 72811 | D18: 35157 | E18: 总 计 | F18: 107968 | G18: 72811 | H18: 35157

Sheet 28.市本级城乡居民基本医疗保险基金收支决算表
A1: 2022年市本级城乡居民基本医疗保险基金收支决算表
D2: 单位：万元
A3: 项 目 | B3: 金 额 | C3: 项 目 | D3: 金 额
A4: 一、基本医疗保险费收入 | B4: 57472 | C4: 一、基本医疗保险待遇支出 | D4: 155942
A5: 其中：集体扶持收入 | B5: 0 | C5: 其中：住院费用支出 | D5: 137710
A6: 城乡医疗救助资助收入 | B6: 658 | C6: 门诊费用支出 | D6: 18233
A7: 财政为困难人员代缴收入 | B7: 4001 | C7: 二、大病保险支出 | D7: 14737
A8: 二、财政补贴收入 | B8: 111128 | C8: 三、其他支出 | D8: 326
A9: 其中：按规定标准补助收入 | B9: 110644
A10: 对医保基金负担新冠病毒疫苗及接种费用的补助 | B10: 484
A11: 三、利息收入 | B11: 1551
A12: 四、其他收入 | B12: 1095
A13: 五、本年收入小计 | B13: 171245 | C13: 四、本年支出小计 | D13: 171005
A14: 六、上级补助收入 | B14: 0 | C14: 五、补助下级支出 | D14: 0
A15: 七、下级上解收入 | B15: 0 | C15: 六、上解上级支出 | D15: 0
A16: 八、本年收入合计 | B16: 171245 | C16: 七、本年支出合计 | D16: 171005
C17: 八、本年收支结余 | D17: 240
A18: 九、上年结余 | B18: 70680 | C18: 九、年末滚存结余 | D18: 70920
A19: 总 计 | B19: 241926 | C19: 总 计 | D19: 241926

Sheet 29.市本级工伤保险基金收支决算表
A1: 2022年市本级工伤保险基金收支决算表
D2: 单位：万元
A3: 项 目 | B3: 金 额 | C3: 项 目 | D3: 金 额
A4: 一、工伤保险费收入 | B4: 1477 | C4: 一、工伤保险待遇支出 | D4: 2796
A5: 二、财政补贴收入 | B5: 0 | C5: 其中：医疗待遇支出 | D5: 607
A6: 三、利息收入 | B6: 98 | C6: 二、劳动能力鉴定支出 | D6: 0
A7: 四、其他收入 | B7: 7 | C7: 三、工伤保险预防费用支出 | D7: 4
C8: 四、其他支出 | D8: 15
A9: 五、本年收入小计 | B9: 1582 | C9: 五、本年支出小计 | D9: 2814
A10: 六、上级补助收入 | B10: 0 | C10: 六、补助下级支出 | D10: 0
A11: 七、下级上解收入 | B11: 0 | C11: 七、上解上级支出 | D11: 101
A12: 八、本年收入合计 | B12: 1582 | C12: 八、本年支出合计 | D12: 2915
C13: 九、本年收支结余 | D13: -1333
A14: 九、上年结余 | B14: 8209 | C14: 十、年末滚存结余 | D14: 6876
A15: 其中：储备金 | B15: 0 | C15: 其中：储备金 | D15: 0
A16: 总 计 | B16: 9791 | C16: 总 计 | D16: 9791

Sheet 30.市本级失业保险基金收支决算表
A1: 2022年市本级失业保险基金收支决算表
D2: 单位：万元
A3: 项 目 | B3: 金 额 | C3: 项 目 | D3: 金 额
A4: 一、失业保险费收入 | B4: 1961 | C4: 一、失业保险金支出 | D4: 378
A5: 二、财政补贴收入 | B5: 0 | C5: 二、基本医疗保险费支出 | D5: 66
A6: 三、利息收入 | B6: 50 | C6: 三、丧葬补助金和抚恤金支出 | D6: 0
A7: 四、转移收入 | B7: 0 | C7: 四、职业培训和职业介绍补贴支出 | D7: 0
A8: 五、其他收入 | B8: 12 | C8: 五、其他费用支出 | D8: 5
C9: 六、稳岗返还支出 | D9: 941
C10: 七、技能提升补贴支出 | D10: 22
C11: 八、转移支出 | D11: 0
C12: 九、其他支出 | D12: 15
A13: 六、本年收入小计 | B13: 2023 | C13: 十、本年支出小计 | D13: 1427
A14: 七、上级补助收入 | B14: 694 | C14: 十一、补助下级支出 | D14: 0
A15: 八、下级上解收入 | B15: 0 | C15: 十二、上解上级支出 | D15: 85
A16: 九、本年收入合计 | B16: 2717 | C16: 十三、本年支出合计 | D16: 1512
C17: 十四、本年收支结余 | D17: 1204
A18: 十、上年结余 | B18: 1854 | C18: 十五、年末滚存结余 | D18: 3058
A19: 总 计 | B19: 4571 | C19: 总 计 | D19: 4571

Sheet 31.地方政府债券转贷情况表
A1: 2022年随州市地方政府债券转贷情况表
G2: 单位：万元
A3: 债券名称 | B3: 债券编码 | C3: 债券类型 | D3: 转贷全市 债券额度 | E3: 转贷市本级 债券额度 | F3: 发行时间（年/月/日） | G3: 债券 利率(%) | H3: 债券 期限
A4: 一、新增债券 | D4: =XFD5+XFD12 -> 444112 | E4: =XFD5+XFD12 -> 80385
A5: 1.一般债券 | D5: =SUM(XFD6:XFD11) -> 97912 | E5: =SUM(XFD6:XFD11) -> 6385
A6: 2022年湖北省政府一般债券（七期） | B6: 2271143 | C6: 一般债券 | D6: 3019 | F6: 2022-06-15 | G6: 3.22 | H6: 20年
A7: 2022年湖北省政府一般债券（三期） | B7: 2205022 | C7: 一般债券 | D7: 21949 | E7: 2611 | F7: 2022-01-14 | G7: 3.27 | H7: 15年
A8: 2022年湖北省政府一般债券（六期） | B8: 2271142 | C8: 一般债券 | D8: 775 | E8: 61 | F8: 2022-06-15 | G8: 2.86 | H8: 10年
A9: 2022年湖北省政府一般债券（一期） | B9: 2205020 | C9: 一般债券 | D9: 10562 | F9: 2022-01-14 | G9: 2.51 | H9: 2年
A10: 2022年湖北省政府一般债券（二期） | B10: 2205021 | C10: 一般债券 | D10: 14082 | E10: 1174 | F10: 2022-01-14 | G10: 2.94 | H10: 7年
A11: 2022年湖北省政府一般债券（四期） | B11: 2271140 | C11: 一般债券 | D11: 47525 | E11: 2539 | F11: 2022-06-15 | G11: 2.68 | H11: 5年
A12: 2.专项债券 | D12: =SUM(XFD13:XFD127) -> 346200 | E12: =SUM(XFD13:XFD127) -> 74000
A13: 2022年湖北省（荆州市、黄冈市、咸宁市、随州市、恩施州、仙桃市、神农架林区）棚改专项债券（二期）-2022年湖北省政府专项债券（十期） | B13: 2205298 | C13: 专项债券 | D13: 10000 | F13: 2022-02-23 | G13: 2.93 | H13: 7年
A14: 2022年湖北省政府专项债券（二十期） | B14: 2205458 | C14: 专项债券 | D14: 1600 | F14: 2022-03-22 | G14: 3.31 | H14: 15年
A15: 2022年湖北省政府专项债券（十五期） | B15: 2205453 | C15: 专项债券 | D15: 7200 | F15: 2022-03-22 | G15: 3.22 | H15: 15年
A16: 2022年湖北省政府专项债券（十九期） | B16: 2205457 | C16: 专项债券 | D16: 4000 | F16: 2022-03-22 | G16: 3.22 | H16: 15年
A17: 2022年湖北省政府专项债券（五十期） | B17: 2205678 | C17: 专项债券 | D17: 3200 | F17: 2022-05-10 | G17: 3.28 | H17: 17年
A18: 2022年湖北省政府专项债券(三十期) | B18: 2205526 | C18: 专项债券 | D18: 3000 | F18: 2022-03-29 | G18: 2.91 | H18: 10年
A19: 2022年湖北省政府专项债券（六十三期） | B19: 2271002 | C19: 专项债券 | D19: 200 | F19: 2022-06-08 | G19: 3.22 | H19: 14年
A20: 2022年湖北省政府专项债券（五十三期） | B20: 2205817 | C20: 专项债券 | D20: 700 | F20: 2022-05-23 | G20: 3.2 | H20: 11年
A21: 2022年湖北省政府专项债券（八十一期） | B21: 2271207 | C21: 专项债券 | D21: 4400 | E21: 4400 | F21: 2022-06-21 | G21: 3.23 | H21: 20年
A22: 2022年湖北省政府专项债券（九十三期） | B22: 2271973 | C22: 专项债券 | D22: 800 | F22: 2022-10-28 | G22: 3.07 | H22: 16年
A23: 2022年湖北省政府专项债券（八十期） | B23: 2271206 | C23: 专项债券 | D23: 6020 | E23: 5420 | F23: 2022-06-21 | G23: 3.18 | H23: 13年
A24: 2022年湖北省政府专项债券（七十七期） | B24: 2271203 | C24: 专项债券 | D24: 6000 | F24: 2022-06-21 | G24: 3.23 | H24: 20年
A25: 2022年湖北省政府专项债券（九十二期） | B25: 2271972 | C25: 专项债券 | D25: 6160 | F25: 2022-10-28 | G25: 2.98 | H25: 11年
A26: 2022年湖北省政府专项债券（五十二期） | B26: 2205816 | C26: 专项债券 | D26: 1160 | F26: 2022-05-23 | G26: 2.9 | H26: 8年
A27: 2022年湖北省政府专项债券（二十期） | B27: 2205458 | C27: 专项债券 | D27: 1600 | F27: 2022-03-22 | G27: 3.31 | H27: 20年
A28: 2022年湖北省政府专项债券（二十期） | B28: 2205458 | C28: 专项债券 | D28: 1600 | F28: 2022-03-22 | G28: 3.31 | H28: 14年
A29: 2022年湖北省政府专项债券（三十六期） | B29: 2205532 | C29: 专项债券 | D29: 1880 | F29: 2022-03-29 | G29: 3.22 | H29: 14年
A30: 2022年湖北省政府专项债券（五十期） | B30: 2205678 | C30: 专项债券 | D30: 3200 | F30: 2022-05-10 | G30: 3.28 | H30: 16年
A31: 2022年湖北省政府专项债券（四十六期） | B31: 2205674 | C31: 专项债券 | D31: 3000 | F31: 2022-05-10 | G31: 3.24 | H31: 15年
A32: 2022年湖北省政府专项债券（十九期） | B32: 2205457 | C32: 专项债券 | D32: 4000 | F32: 2022-03-22 | G32: 3.22 | H32: 12年
A33: 2022年湖北省政府专项债券（五十三期） | B33: 2205817 | C33: 专项债券 | D33: 700 | F33: 2022-05-23 | G33: 3.2 | H33: 12年
A34: 2022年湖北省政府专项债券（六十三期） | B34: 2271002 | C34: 专项债券 | D34: 200 | F34: 2022-06-08 | G34: 3.22 | H34: 11年
A35: 2022年湖北省政府专项债券（五十三期） | B35: 2205817 | C35: 专项债券 | D35: 700 | F35: 2022-05-23 | G35: 3.2 | H35: 14年
A36: 2022年湖北省政府专项债券（八十一期） | B36: 2271207 | C36: 专项债券 | D36: 4400 | E36: 4400 | F36: 2022-06-21 | G36: 3.23 | H36: 17年
A37: 2022年湖北省政府专项债券（八十期） | B37: 2271206 | C37: 专项债券 | D37: 6020 | E37: 5420 | F37: 2022-06-21 | G37: 3.18 | H37: 12年
A38: 2022年湖北省（武汉市、黄石市、宜昌市、襄阳市、荆州市、随州市、恩施州）棚改专项债券（十七期）-2022年湖北省政府专项债券（八十六期） | B38: 2271212 | C38: 专项债券 | D38: 2000 | E38: 2000 | F38: 2022-06-21 | G38: 2.89 | H38: 7年
A39: 2022年湖北省政府专项债券（九十一期） | B39: 2271971 | C39: 专项债券 | D39: 2880 | F39: 2022-10-28 | G39: 2.82 | H39: 6年
A40: 2022年湖北省政府专项债券（二十期） | B40: 2205458 | C40: 专项债券 | D40: 1600 | F40: 2022-03-22 | G40: 3.31 | H40: 17年
A41: 2022年湖北省政府专项债券（十九期） | B41: 2205457 | C41: 专项债券 | D41: 4000 | F41: 2022-03-22 | G41: 3.22 | H41: 13年
A42: 2022年湖北省政府专项债券（二十期） | B42: 2205458 | C42: 专项债券 | D42: 1600 | F42: 2022-03-22 | G42: 3.31 | H42: 13年
A43: 2022年湖北省政府专项债券（二十期） | B43: 2205458 | C43: 专项债券 | D43: 1600 | F43: 2022-03-22 | G43: 3.31 | H43: 11年
A44: 2022年湖北省政府专项债券（三十六期） | B44: 2205532 | C44: 专项债券 | D44: 1880 | F44: 2022-03-29 | G44: 3.22 | H44: 11年
A45: 2022年湖北省政府专项债券（三十六期） | B45: 2205532 | C45: 专项债券 | D45: 1880 | F45: 2022-03-29 | G45: 3.22 | H45: 13年
A46: 2022年湖北省政府专项债券（三十六期） | B46: 2205532 | C46: 专项债券 | D46: 1880 | F46: 2022-03-29 | G46: 3.22 | H46: 12年
A47: 2022年湖北省政府专项债券（四十九期） | B47: 2205677 | C47: 专项债券 | D47: 280 | F47: 2022-05-10 | G47: 3.24 | H47: 12年
A48: 2022年湖北省政府专项债券（六十三期） | B48: 2271002 | C48: 专项债券 | D48: 200 | F48: 2022-06-08 | G48: 3.22 | H48: 20年
A49: 2022年湖北省政府专项债券（六十二期） | B49: 2271001 | C49: 专项债券 | D49: 3000 | F49: 2022-06-08 | G49: 3.16 | H49: 15年
A50: 2022年湖北省政府专项债券（六十二期） | B50: 2271001 | C50: 专项债券 | D50: 3000 | F50: 2022-06-08 | G50: 3.16 | H50: 14年
A51: 2022年湖北省政府专项债券（六十三期） | B51: 2271002 | C51: 专项债券 | D51: 200 | F51: 2022-06-08 | G51: 3.22 | H51: 17年
A52: 2022年湖北省政府专项债券（六十七期） | B52: 2271145 | C52: 专项债券 | D52: 3000 | F52: 2022-06-15 | G52: 3.16 | H52: 12年
A53: 2022年湖北省政府专项债券（九十三期） | B53: 2271973 | C53: 专项债券 | D53: 800 | F53: 2022-10-28 | G53: 3.07 | H53: 17年
A54: 2022年湖北省政府专项债券（八十期） | B54: 2271206 | C54: 专项债券 | D54: 6020 | E54: 5420 | F54: 2022-06-21 | G54: 3.18 | H54: 14年
A55: 2022年湖北省政府专项债券（九十三期） | B55: 2271973 | C55: 专项债券 | D55: 800 | F55: 2022-10-28 | G55: 3.07 | H55: 20年
A56: 2022年湖北省政府专项债券（九十三期） | B56: 2271973 | C56: 专项债券 | D56: 800 | F56: 2022-10-28 | G56: 3.07 | H56: 14年
A57: 2022年湖北省政府专项债券（九十三期） | B57: 2271973 | C57: 专项债券 | D57: 800 | F57: 2022-10-28 | G57: 3.07 | H57: 15年
A58: 2022年湖北省政府专项债券（六十二期） | B58: 2271001 | C58: 专项债券 | D58: 3000 | F58: 2022-06-08 | G58: 3.16 | H58: 13年
A59: 2022年湖北省政府专项债券（六十七期） | B59: 2271145 | C59: 专项债券 | D59: 3000 | F59: 2022-06-15 | G59: 3.16 | H59: 15年
A60: 2022年湖北省政府专项债券（二十期） | B60: 2205458 | C60: 专项债券 | D60: 1600 | F60: 2022-03-22 | G60: 3.31 | H60: 19年
A61: 2022年湖北省政府专项债券（二十期） | B61: 2205458 | C61: 专项债券 | D61: 1600 | F61: 2022-03-22 | G61: 3.31 | H61: 12年
A62: 2022年湖北省（武汉市、十堰市、宜昌市、襄阳市、荆州市、黄冈市、随州市、恩施州、神农架林区）棚改专项债券（五期）-2022年湖北省政府专项债券（二十六期） | B62: 2205464 | C62: 专项债券 | D62: 29700 | F62: 2022-03-22 | G62: 2.89 | H62: 7年
A63: 2022年湖北省政府专项债券（五十期） | B63: 2205678 | C63: 专项债券 | D63: 3200 | F63: 2022-05-10 | G63: 3.28 | H63: 12年
A64: 2022年湖北省政府专项债券（五十二期） | B64: 2205816 | C64: 专项债券 | D64: 1160 | F64: 2022-05-23 | G64: 2.9 | H64: 10年
A65: 2022年湖北省政府专项债券（六十三期） | B65: 2271002 | C65: 专项债券 | D65: 200 | F65: 2022-06-08 | G65: 3.22 | H65: 13年
A66: 2022年湖北省政府专项债券（六十七期） | B66: 2271145 | C66: 专项债券 | D66: 3000 | F66: 2022-06-15 | G66: 3.16 | H66: 11年
A67: 2022年湖北省政府专项债券（六十七期） | B67: 2271145 | C67: 专项债券 | D67: 3000 | F67: 2022-06-15 | G67: 3.16 | H67: 14年
A68: 2022年湖北省政府专项债券（八十期） | B68: 2271206 | C68: 专项债券 | D68: 6020 | E68: 5420 | F68: 2022-06-21 | G68: 3.18 | H68: 15年
A69: 2022年湖北省政府专项债券（十九期） | B69: 2205457 | C69: 专项债券 | D69: 4000 | F69: 2022-03-22 | G69: 3.22 | H69: 14年
A70: 2022年湖北省政府专项债券（三十六期） | B70: 2205532 | C70: 专项债券 | D70: 1880 | F70: 2022-03-29 | G70: 3.22 | H70: 15年
A71: 2022年湖北省政府专项债券（六十三期） | B71: 2271002 | C71: 专项债券 | D71: 200 | F71: 2022-06-08 | G71: 3.22 | H71: 15年
A72: 2022年湖北省政府专项债券（五十三期） | B72: 2205817 | C72: 专项债券 | D72: 700 | F72: 2022-05-23 | G72: 3.2 | H72: 13年
A73: 2022年湖北省政府专项债券（八十一期） | B73: 2271207 | C73: 专项债券 | D73: 4400 | E73: 4400 | F73: 2022-06-21 | G73: 3.23 | H73: 16年
A74: 2022年湖北省政府专项债券（八十一期） | B74: 2271207 | C74: 专项债券 | D74: 4400 | E74: 4400 | F74: 2022-06-21 | G74: 3.23 | H74: 18年
A75: 2022年湖北省政府专项债券（八十期） | B75: 2271206 | C75: 专项债券 | D75: 6020 | E75: 5420 | F75: 2022-06-21 | G75: 3.18 | H75: 11年
A76: 2022年湖北省政府专项债券（九十期） | B76: 2271970 | C76: 专项债券 | D76: 1000 | F76: 2022-10-28 | G76: 2.82 | H76: 10年
A77: 2022年湖北省政府专项债券（九十一期） | B77: 2271971 | C77: 专项债券 | D77: 2880 | F77: 2022-10-28 | G77: 2.82 | H77: 7年
A78: 2022年湖北省政府专项债券（四期） | B78: 2205292 | C78: 专项债券 | D78: 4800 | F78: 2022-02-23 | G78: 3.27 | H78: 14年
A79: 2022年湖北省政府专项债券（四期） | B79: 2205292 | C79: 专项债券 | D79: 4800 | F79: 2022-02-23 | G79: 3.27 | H79: 12年
A80: 2022年湖北省政府专项债券（四十九期） | B80: 2205677 | C80: 专项债券 | D80: 280 | F80: 2022-05-10 | G80: 3.24 | H80: 11年
A81: 2022年湖北省政府专项债券（五十期） | B81: 2205678 | C81: 专项债券 | D81: 3200 | F81: 2022-05-10 | G81: 3.28 | H81: 20年
A82: 2022年湖北省政府专项债券（五十期） | B82: 2205678 | C82: 专项债券 | D82: 3200 | F82: 2022-05-10 | G82: 3.28 | H82: 15年
A83: 2022年湖北省政府专项债券（五十二期） | B83: 2205816 | C83: 专项债券 | D83: 1160 | F83: 2022-05-23 | G83: 2.9 | H83: 7年
A84: 2022年湖北省政府专项债券（六十三期） | B84: 2271002 | C84: 专项债券 | D84: 200 | F84: 2022-06-08 | G84: 3.22 | H84: 12年
A85: 2022年湖北省政府专项债券（六十三期） | B85: 2271002 | C85: 专项债券 | D85: 200 | F85: 2022-06-08 | G85: 3.22 | H85: 16年
A86: 2022年湖北省政府专项债券（六十二期） | B86: 2271001 | C86: 专项债券 | D86: 3000 | F86: 2022-06-08 | G86: 3.16 | H86: 11年
A87: 2022年湖北省政府专项债券（六十二期） | B87: 2271001 | C87: 专项债券 | D87: 3000 | F87: 2022-06-08 | G87: 3.16 | H87: 12年
A88: 2022年湖北省政府专项债券（六十七期） | B88: 2271145 | C88: 专项债券 | D88: 3000 | F88: 2022-06-15 | G88: 3.16 | H88: 13年
A89: 2022年湖北省政府专项债券（八十一期） | B89: 2271207 | C89: 专项债券 | D89: 4400 | E89: 4400 | F89: 2022-06-21 | G89: 3.23 | H89: 12年
A90: 2022年湖北省政府专项债券（九十三期） | B90: 2271973 | C90: 专项债券 | D90: 800 | F90: 2022-10-28 | G90: 3.07 | H90: 19年
A91: 2022年湖北省政府专项债券（九十二期） | B91: 2271972 | C91: 专项债券 | D91: 6160 | F91: 2022-10-28 | G91: 2.98 | H91: 13年
A92: 2022年湖北省政府专项债券（九十一期） | B92: 2271971 | C92: 专项债券 | D92: 2880 | F92: 2022-10-28 | G92: 2.82 | H92: 8年
A93: 2022年湖北省政府专项债券（五十期） | B93: 2205678 | C93: 专项债券 | D93: 3200 | F93: 2022-05-10 | G93: 3.28 | H93: 11年
A94: 2022年湖北省政府专项债券（四期） | B94: 2205292 | C94: 专项债券 | D94: 4800 | F94: 2022-02-23 | G94: 3.27 | H94: 15年
A95: 2022年湖北省政府专项债券（二十期） | B95: 2205458 | C95: 专项债券 | D95: 1600 | F95: 2022-03-22 | G95: 3.31 | H95: 16年
A96: 2022年湖北省政府专项债券（十九期） | B96: 2205457 | C96: 专项债券 | D96: 4000 | F96: 2022-03-22 | G96: 3.22 | H96: 11年
A97: 2022年湖北省政府专项债券（四期） | B97: 2205292 | C97: 专项债券 | D97: 4800 | F97: 2022-02-23 | G97: 3.27 | H97: 13年
A98: 2022年湖北省政府专项债券（四十九期） | B98: 2205677 | C98: 专项债券 | D98: 280 | F98: 2022-05-10 | G98: 3.24 | H98: 13年
A99: 2022年湖北省政府专项债券（四十九期） | B99: 2205677 | C99: 专项债券 | D99: 280 | F99: 2022-05-10 | G99: 3.24 | H99: 15年
A100: 2022年湖北省政府专项债券（五十期） | B100: 2205678 | C100: 专项债券 | D100: 3200 | F100: 2022-05-10 | G100: 3.28 | H100: 19年
A101: 2022年湖北省政府专项债券（四十七期） | B101: 2205675 | C101: 专项债券 | D101: 6000 | F101: 2022-05-10 | G101: 3.28 | H101: 20年
A102: 2022年湖北省政府专项债券（六十三期） | B102: 2271002 | C102: 专项债券 | D102: 200 | F102: 2022-06-08 | G102: 3.22 | H102: 19年
A103: 2022年湖北省政府专项债券（八十一期） | B103: 2271207 | C103: 专项债券 | D103: 4400 | E103: 4400 | F103: 2022-06-21 | G103: 3.23 | H103: 19年
A104: 2022年湖北省政府专项债券（八十一期） | B104: 2271207 | C104: 专项债券 | D104: 4400 | E104: 4400 | F104: 2022-06-21 | G104: 3.23 | H104: 11年
A105: 2022年湖北省政府专项债券（九十三期） | B105: 2271973 | C105: 专项债券 | D105: 800 | F105: 2022-10-28 | G105: 3.07 | H105: 18年
A106: 2022年湖北省政府专项债券（九十三期） | B106: 2271973 | C106: 专项债券 | D106: 800 | F106: 2022-10-28 | G106: 3.07 | H106: 13年
A107: 2022年湖北省政府专项债券（九十二期） | B107: 2271972 | C107: 专项债券 | D107: 6160 | F107: 2022-10-28 | G107: 2.98 | H107: 14年
A108: 2022年湖北省政府专项债券（九十三期） | B108: 2271973 | C108: 专项债券 | D108: 800 | F108: 2022-10-28 | G108: 3.07 | H108: 11年
A109: 2022年湖北省政府专项债券（二十期） | B109: 2205458 | C109: 专项债券 | D109: 1600 | F109: 2022-03-22 | G109: 3.31 | H109: 18年
A110: 2022年湖北省政府专项债券（四期） | B110: 2205292 | C110: 专项债券 | D110: 4800 | F110: 2022-02-23 | G110: 3.27 | H110: 11年
A111: 2022年湖北省政府专项债券（四十九期） | B111: 2205677 | C111: 专项债券 | D111: 280 | F111: 2022-05-10 | G111: 3.24 | H111: 14年
A112: 2022年湖北省政府专项债券（五十期） | B112: 2205678 | C112: 专项债券 | D112: 3200 | F112: 2022-05-10 | G112: 3.28 | H112: 18年
A113: 2022年湖北省政府专项债券（五十期） | B113: 2205678 | C113: 专项债券 | D113: 3200 | F113: 2022-05-10 | G113: 3.28 | H113: 14年
A114: 2022年湖北省政府专项债券（五十二期） | B114: 2205816 | C114: 专项债券 | D114: 1160 | F114: 2022-05-23 | G114: 2.9 | H114: 6年
A115: 2022年湖北省政府专项债券（六十三期） | B115: 2271002 | C115: 专项债券 | D115: 200 | F115: 2022-06-08 | G115: 3.22 | H115: 18年
A116: 2022年湖北省政府专项债券（五十二期） | B116: 2205816 | C116: 专项债券 | D116: 1160 | F116: 2022-05-23 | G116: 2.9 | H116: 9年
A117: 2022年湖北省政府专项债券（五十三期） | B117: 2205817 | C117: 专项债券 | D117: 700 | F117: 2022-05-23 | G117: 3.2 | H117: 15年
A118: 2022年湖北省政府专项债券（八十一期） | B118: 2271207 | C118: 专项债券 | D118: 4400 | E118: 4400 | F118: 2022-06-21 | G118: 3.23 | H118: 13年
A119: 2022年湖北省政府专项债券（八十一期） | B119: 2271207 | C119: 专项债券 | D119: 4400 | E119: 4400 | F119: 2022-06-21 | G119: 3.23 | H119: 14年
A120: 2022年湖北省政府专项债券（八十一期） | B120: 2271207 | C120: 专项债券 | D120: 4400 | E120: 4400 | F120: 2022-06-21 | G120: 3.23 | H120: 15年
A121: 2022年湖北省政府专项债券（七十六期） | B121: 2271202 | C121: 专项债券 | D121: 6900 | E121: 900 | F121: 2022-06-21 | G121: 3.18 | H121: 15年
A122: 2022年湖北省政府专项债券（九十三期） | B122: 2271973 | C122: 专项债券 | D122: 800 | F122: 2022-10-28 | G122: 3.07 | H122: 12年
A123: 2022年湖北省政府专项债券（九十二期） | B123: 2271972 | C123: 专项债券 | D123: 6160 | F123: 2022-10-28 | G123: 2.98 | H123: 12年
A124: 2022年湖北省政府专项债券（九十二期） | B124: 2271972 | C124: 专项债券 | D124: 6160 | F124: 2022-10-28 | G124: 2.98 | H124: 15年
A125: 2022年湖北省政府专项债券（九十一期） | B125: 2271971 | C125: 专项债券 | D125: 2880 | F125: 2022-10-28 | G125: 2.82 | H125: 9年
A126: 2022年湖北省政府专项债券（九十一期） | B126: 2271971 | C126: 专项债券 | D126: 2880 | F126: 2022-10-28 | G126: 2.82 | H126: 10年
A127: 2022年湖北省政府专项债券（五十期） | B127: 2205678 | C127: 专项债券 | D127: 3200 | F127: 2022-05-10 | G127: 3.28 | H127: 13年
A128: 二、再融资债券 | D128: =XFD129+XFD144 -> 150308 | E128: =XFD129+XFD144 -> 19917
A129: 1.一般债券 | D129: =SUM(XFD130:XFD143) -> 50334 | E129: =SUM(XFD130:XFD143) -> 2826
A130: 2022年湖北省政府再融资一般债券（十一期） | B130: 2205806 | C130: 一般债券 | D130: 11621 | F130: 2022-05-23 | G130: 2.36 | H130: 2年
A131: 2022年湖北省政府再融资一般债券（十八期） | B131: 2205988 | C131: 一般债券 | D131: 321 | F131: 2022-06-08 | G131: 2.67 | H131: 5年
A132: 2022年湖北省政府再融资一般债券（三十一期） | B132: 2271653 | C132: 一般债券 | D132: 762 | F132: 2022-09-06 | G132: 2.18 | H132: 2年
A133: 2022年湖北省政府再融资一般债券（三十三期） | B133: 2271655 | C133: 一般债券 | D133: 1173 | F133: 2022-09-06 | G133: 2.5 | H133: 5年
A134: 2022年湖北省政府再融资一般债券（三期） | B134: 2205572 | C134: 一般债券 | D134: 2826 | E134: 2826 | F134: 2022-04-12 | G134: 2.88 | H134: 7年
A135: 2022年湖北省政府再融资一般债券（十三期） | B135: 2205808 | C135: 一般债券 | D135: 6225 | F135: 2022-05-23 | G135: 2.66 | H135: 5年
A136: 2022年湖北省政府再融资一般债券（二十四期） | B136: 2271365 | C136: 一般债券 | D136: 2830 | F136: 2022-07-01 | G136: 2.76 | H136: 5年
A137: 2022年湖北省政府再融资一般债券（七期） | B137: 2205669 | C137: 一般债券 | D137: 5489 | F137: 2022-05-10 | G137: 2.71 | H137: 5年
A138: 2022年湖北省政府再融资一般债券（十五期） | B138: 2205810 | C138: 一般债券 | D138: 151 | F138: 2022-05-23 | G138: 2.9 | H138: 10年
A139: 2022年湖北省政府再融资一般债券（二十一期） | B139: 2271362 | C139: 一般债券 | D139: 2781 | F139: 2022-07-01 | G139: 2.08 | H139: 1年
A140: 2022年湖北省政府再融资一般债券（十期） | B140: 2205805 | C140: 一般债券 | D140: 166 | F140: 2022-05-23 | G140: 2.05 | H140: 1年
A141: 2022年湖北省政府再融资一般债券（五期） | B141: 2205667 | C141: 一般债券 | D141: 3583 | F141: 2022-05-10 | G141: 2.44 | H141: 2年
A142: 2022年湖北省政府再融资一般债券（十四期） | B142: 2205809 | C142: 一般债券 | D142: 11406 | F142: 2022-05-23 | G142: 2.9 | H142: 7年
A143: 2022年湖北省政府再融资一般债券（二十三期） | B143: 2271364 | C143: 一般债券 | D143: 1000 | F143: 2022-07-01 | G143: 2.54 | H143: 3年
A144: 2.专项债券 | D144: =SUM(XFD145:XFD162) -> 99974 | E144: =SUM(XFD145:XFD162) -> 17091
A145: 2022年湖北省政府再融资专项债券（五期） | B145: 2205578 | C145: 专项债券 | D145: 1632 | E145: 1632 | F145: 2022-04-12 | G145: 2.88 | H145: 7年
A146: 2022年湖北省政府再融资专项债券（九期） | B146: 2205813 | C146: 专项债券 | D146: 27055 | E146: 12841 | F146: 2022-05-23 | G146: 2.66 | H146: 5年
A147: 2022年湖北省政府再融资专项债券（四期） | B147: 2205577 | C147: 专项债券 | D147: 600 | F147: 2022-04-12 | G147: 2.63 | H147: 5年
A148: 2022年湖北省政府再融资专项债券（十一期） | B148: 2205815 | C148: 专项债券 | D148: 7064 | F148: 2022-05-23 | G148: 2.9 | H148: 10年
A149: 2022年湖北省政府再融资专项债券（十三期） | B149: 2205992 | C149: 专项债券 | D149: 1000 | F149: 2022-06-08 | G149: 2.39 | H149: 2年
A150: 2022年湖北省政府再融资专项债券（二十三期） | B150: 2271575 | C150: 专项债券 | D150: 12650 | F150: 2022-07-27 | G150: 2.66 | H150: 5年
A151: 2022年湖北省政府再融资专项债券（六期） | B151: 2205579 | C151: 专项债券 | D151: 2618 | E151: 2618 | F151: 2022-04-12 | G151: 2.86 | H151: 10年
A152: 2022年湖北省政府再融资专项债券（二十四期） | B152: 2271576 | C152: 专项债券 | D152: 1234 | F152: 2022-07-27 | G152: 2.86 | H152: 7年
A153: 2022年湖北省政府再融资专项债券（十二期） | B153: 2205991 | C153: 专项债券 | D153: 790 | F153: 2022-06-08 | G153: 2.07 | H153: 1年
A154: 2022年湖北省政府再融资专项债券（十期） | B154: 2205814 | C154: 专项债券 | D154: 4035 | F154: 2022-05-23 | G154: 2.9 | H154: 7年
A155: 2022年湖北省政府再融资专项债券（二十二期） | B155: 2271574 | C155: 专项债券 | D155: 5000 | F155: 2022-07-27 | G155: 2.46 | H155: 3年
A156: 2022年湖北省政府再融资专项债券（二十六期） | B156: 2271658 | C156: 专项债券 | D156: 2200 | F156: 2022-09-06 | G156: 2.5 | H156: 5年
A157: 2022年湖北省政府再融资专项债券（三十期） | B157: 2271724 | C157: 专项债券 | D157: 1766 | F157: 2022-10-12 | G157: 2.41 | H157: 3年
A158: 2022年湖北省政府再融资专项债券（二十九期） | B158: 2271723 | C158: 专项债券 | D158: 10000 | F158: 2022-10-12 | G158: 2.21 | H158: 2年
A159: 2022年湖北省政府再融资专项债券（二十一期） | B159: 2271573 | C159: 专项债券 | D159: 2720 | F159: 2022-07-27 | G159: 2.34 | H159: 2年
A160: 2022年湖北省政府再融资专项债券（二十五期） | B160: 2271577 | C160: 专项债券 | D160: 9080 | F160: 2022-07-27 | G160: 2.87 | H160: 10年
A161: 2022年湖北省政府再融资专项债券（十五期） | B161: 2205994 | C161: 专项债券 | D161: 2220 | F161: 2022-06-08 | G161: 2.67 | H161: 5年
A162: 2022年湖北省政府再融资专项债券（二十八期） | B162: 2271722 | C162: 专项债券 | D162: 8310 | F162: 2022-10-12 | G162: 1.92 | H162: 1年

Sheet 32.全市地方政府、还本付息决算表
A1: 2022年全市及市本级地方政府债券还本付息决算表
C2: 单位：万元
A3: 项 目 | B3: 全市 | C3: 市本级
A4: 合 计 | B4: =XFD5+XFD12+XFD15 -> 309566 | C4: =XFD5+XFD12+XFD15 -> 82163
A5: 一、还本决算数 | B5: 237745 | C5: 57355
A6: （一）一般债券 | B6: 88087 | C6: 19710
A7: 其中：再融资 | B7: 50334 | C7: 2826
A8: 财政预算安排 | B8: =XFD6-XFD7 -> 37753 | C8: =XFD6-XFD7 -> 16884
A9: （二）专项债券 | B9: 149658 | C9: 37645
A10: 其中：再融资 | B10: 99974 | C10: 17091
A11: 财政预算安排 | B11: =XFD9-XFD10 -> 49684 | C11: =XFD9-XFD10 -> 20554
A12: 二、付息决算数 | B12: =XFD13+XFD14 -> 71234 | C12: =XFD13+XFD14 -> 24701
A13: （一）一般债券 | B13: 33896 | C13: 7170
A14: （二）专项债券 | B14: 37338 | C14: 17531
A15: 三、发行登记费决算数 | B15: =XFD16+XFD17 -> 587 | C15: =XFD16+XFD17 -> 107
A16: （一）一般债券 | B16: 141 | C16: 15
A17: （二）专项债券 | B17: 446 | C17: 92

Sheet 33.市本级三公经费支出情况表
A1: 附表6
A3: 市本级2022年“三公”经费支出汇总情况表
A4: 单位：万元
A5: 项 目 | B5: 2021年决算数 | C5: 2022年预算数 | D5: 2022年决算数 | E5: 2022年决算数占 预算数的比例 | F5: 2022年决算数比2021年同期增（减）比例 | G5: 备注
A6: “三公”经费支出 | B6: =XFD7+XFD8+XFD11 -> 1613 | C6: =XFD7+XFD8+XFD11 -> 2054 | D6: =XFD7+XFD8+XFD11 -> 1700 | E6: =XFD6/XFD6 -> 82.8% | F6: =XFD6/XFD6-1 -> 5.4%
A7: 1．因公出国（境）费 | C7: 222 | D7: 1 | E7: 0.5% | G7: 主要是市侨联主席随同省侨联到澳门参加学习交流活动
A8: 2．公务用车购置及运行维护费 | B8: =XFD9+XFD10 -> 1522 | C8: =XFD9+XFD10 -> 1462 | D8: =XFD9+XFD10 -> 1617 | E8: 110.6% | F8: 6.2%
A9: （1）公务用车购置费 | B9: 571 | C9: 231 | D9: 595 | E9: 257.6% | F9: 4.2% | G9: 主要是现有公务车辆老化严重，因业务工作需要淘汰老旧车辆，导致公务用车购置费超过预算
A10: （2）公务用车运行维护费 | B10: 951 | C10: 1231 | D10: 1022 | E10: 83.0% | F10: 7.5% | G10: 2022年因疫情流调、燃油价格上涨、新增公务用车购买保险等原因，导致公务用车运行维护费增加
A11: 3．公务接待费 | B11: =XFD12+XFD14 -> 91 | C11: =XFD12+XFD14 -> 370 | D11: =XFD12+XFD14 -> 82 | E11: 22.2% | F11: -9.9%
A12: （1）国内接待费 | B12: 91 | C12: 370 | D12: 82 | E12: 22.2% | F12: -9.9%
A13: 其中：外事接待费
A14: （2）国（境）外接待费
A15: 一般公共预算财政拨款安排的“三公”经费支出决算情况说明：市直部门按照过“紧日子”要求，严格落实中央八项规定实施细则，从严控制和压缩“三公”经费支出，加上疫情影响，市级“三公”经费大幅下降。据统计，市级“三公”经费财政拨款支出1700万元，比预算数减少354万元，其中：因公出国（境）经费1万元，减少 221万元；公务用车购置及运行维护费1617万元，增长155万元；公务接待费82万元，减少288万元。

Sheet 34.全市一般债券安排使用表
A2: 2022年全市一般债券项目情况表
D4: 单位：万元
A5: 序号 | B5: 项目单位 | C5: 项目名称 | D5: 债券资金到位额度
B6: 全市合计（65个） | D6: =XFD7+XFD28+XFD40+XFD53 -> 97912
B7: 市本级小计（20个） | D7: =SUM(XFD8:XFD27) -> 9335
A8: 1 | B8: 市二中 | C8: 新建教学楼 | D8: 600
A9: 2 | B9: 市政数局 | C9: 水电气接入外线工程并联审批系统建设 | D9: 45
A10: 3 | B10: 市公检中心 | C10: 随州市公共检验检测中心实验室装修工程 | D10: 100
A11: 4 | B11: 市市容环境局 | C11: 城南垃圾填埋场封场及渗滤液处理项目 | D11: 200
A12: 5 | B12: 市城管委 | C12: 老城区人行道改造（中心城区） | D12: 200
A13: 6 | B13: 市城管委 | C13: 中心城区城市双修工程 | D13: 100
A14: 7 | B14: 市城管委 | C14: 解放路步行街综合整治项目（沿河大道-舜井大道） | D14: 595
A15: 8 | B15: 市政协办 | C15: 政协文史馆 | D15: 400
A16: 9 | B16: 市文旅局 | C16: 擂鼓墩古墓群保护规划修编 | D16: 21
A17: 10 | B17: 市应急局 | C17: 全灾种（除火灾外）应急救援装备 | D17: 392
A18: 11 | B18: 市应急局 | C18: 应急短波通信网建设 | D18: 160
A19: 12 | B19: 市消防支队 | C19: 消防器材、基础设施、配套系统及救援站改造 | D19: 300
A20: 13 | B20: 市市场监管局 | C20: 检测设备购置 | D20: 430
A21: 14 | B21: 市教育局 | C21: 市直高中标准化考场及指挥平台建设 | D21: 85
A22: 15 | B22: 市水利和湖泊局 | C22: 㵐水梁家桥水生态连通工程 | D22: 1267
A23: 16 | B23: 市水利和湖泊局 | C23: 鄂北水资源配置二期市直工程 | D23: 1200
A24: 17 | B24: 市气象局 | C24: 乡镇应对极端天气补短板工程建设 | D24: 290
A25: 18 | B25: 大洪山管委会 | C25: 小型水库安全运行项目 | D25: 98
A26: 19 | B26: 高新区管委会 | C26: 大型火电厂园区配套基础设施建设项目 | D26: 2757
A27: 20 | B27: 高新区管委会 | C27: 小型水库安全运行项目 | D27: 95
B28: 随县小计（11个） | D28: =SUM(XFD29:XFD39) -> 27831
A29: 21 | B29: 随县城市开发投资有限公司 | C29: 县城基础设施建设 | D29: 6000
A30: 22 | B30: 随县交通运输局 | C30: 随县公路建设 | D30: 3749
A31: 23 | B31: 随县住房和城乡建设局 | C31: 随县乡镇污水处理厂配套管网工程项目 | D31: 2000
A32: 24 | B32: 随县炎帝学校 | C32: 炎帝学校基础设施建设 | D32: 920
A33: 25 | B33: 随县农业农村局 | C33: 乡村振兴人居环境补短板项目 | D33: 2162
A34: 26 | B34: 随县小林镇人民政府 | C34: 镇区至火车站工业园区公路建设 | D34: 1568
A35: 27 | B35: 随县城市开发投资有限公司 | C35: 滨河东路工程 | D35: 2000
A36: 28 | B36: 随县城市开发投资有限公司 | C36: 随县高级中学项目 | D36: 2000
A37: 29 | B37: 随县自然资源和规划局 | C37: 土地综合利用 | D37: 5000
A38: 30 | B38: 随县水利和湖泊局 | C38: 支持保障小型水库安全运行项目 | D38: 1000
A39: 31 | B39: 随县人民医院 | C39: 随县人民医院二期建设项目 | D39: 1432
B40: 广水市小计（12个） | D40: =SUM(XFD41:XFD52) -> 39671
A41: 32 | B41: 市水利和湖泊局 | C41: 小型水库安全运行项目 | D41: 1100
A42: 33 | B42: 杨寨镇政府 | C42: 发展道路建设项目 | D42: 2000
A43: 34 | B43: 长岭镇政府 | C43: 徐家河环库公路项目 | D43: 2000
A44: 35 | B44: 吴店镇政府 | C44: 红色旅游道路建设项目 | D44: 2000
A45: 36 | B45: 市农业农村局 | C45: 高标准农田建设项目 | D45: 1500
A46: 37 | B46: 广水市城市更新投资公司 | C46: 广水市应山城区北关片区雨污分流改造工程 | D46: 2900
A47: 38 | B47: 广水市城市更新投资公司 | C47: 广水市四贤路改造及配套管网建设工程项目设计施工（EPC)总承包 | D47: 4650
A48: 39 | B48: 广水市文旅投公司 | C48: 徐家河环库公路建设项目 | D48: 3000
A49: 40 | B49: 杨寨镇人民政府 | C49: 工业园区配套工和建设项目 | D49: 2000
A50: 41 | B50: 广水市城市更新投公司 | C50: 三里河桥重建工程项目 | D50: 4000
A51: 42 | B51: 广水市城市更新投公司 | C51: 永阳幼儿园建设项目 | D51: 3000
A52: 43 | B52: 市交通运输局 | C52: 316国道改造项目 | D52: 11521
B53: 曾都区小计（22个） | D53: =SUM(XFD54:XFD75) -> 21075
A54: 44 | B54: 曾都区宏图建设开发有限公司 | C54: 何店高质量示范区征地拆迁工程 | D54: 5900
A55: 45 | B55: 曾都区宏图建设开发有限公司 | C55: 随州市两水东路（北外环——烟化路）道路工程建设项目 | D55: 46
A56: 46 | B56: 曾都区宏图建设开发有限公司 | C56: 福银高速随州收费站出口道路环境综合整治工程项目 | D56: 1100
A57: 47 | B57: 曾都区宏图建设开发有限公司 | C57: 随州市曾都区经济开发区城市基础设施改造提升项目 | D57: 1762
A58: 48 | B58: 万店镇人民政府 | C58: 曾都区万店镇擦亮小城镇建设项目 | D58: 950
A59: 49 | B59: 何店镇人民政府 | C59: 曾都区何店镇擦亮小城镇建设项目 | D59: 950
A60: 50 | B60: 府河镇人民政府 | C60: 曾都区府河镇擦亮小城镇建设项目 | D60: 950
A61: 51 | B61: 洛阳镇人民政府 | C61: 曾都区洛阳镇擦亮小城镇建设项目 | D61: 966
A62: 52 | B62: 曾都区宏图建设开发有限公司 | C62: 随州市何店高质量发展示范区循环道路 建设项目 | D62: 1472
A63: 53 | B63: 曾都区宏图建设开发有限公司 | C63: 福银高速随州收费站出口道路提质升级项目 | D63: 1500
A64: 54 | B64: 曾都区交通运输局 | C64: 曾都区“三年消危”桥梁改造项目 | D64: 890
A65: 55 | B65: 曾都区交通运输局 | C65: 曾都区2022年农村公路渡改桥工程 | D65: 438
A66: 56 | B66: 曾都区交通运输局 | C66: 曾都区道路交通安全隐患整改及农村公路平交路口安全提升工程 | D66: 200
A67: 57 | B67: 曾都区水利和湖泊局 | C67: 曾都区天星沟、青龙寺和分水岭水库除险加固工程 | D67: 356
A68: 58 | B68: 曾都区水利和湖泊局 | C68: 新庙和铁栏沟水库安全隐患整治 | D68: 136
A69: 59 | B69: 曾都区水利和湖泊局 | C69: 两河口、桃园河两座中型水库应急抢险资金 | D69: 367
A70: 60 | B70: 曾都区水利和湖泊局 | C70: 曾都区自然灾害风险普查 | D70: 68
A71: 61 | B71: 曾都区水利和湖泊局 | C71: 随州市曾都区92座小型水库安全监测设施 | D71: 59
A72: 62 | B72: 府河镇人民政府 | C72: 曾都区府河镇卫生院发热门诊 | D72: 500
A73: 63 | B73: 曾都区农业农村局 | C73: 曾都区高标准农田建设项目 | D73: 465
A74: 64 | B74: 高新区农业农村局 | C74: 2022年度随州高新区美丽乡村建设项目 | D74: 1000
A75: 65 | B75: 随县长岗镇人民政府 | C75: 随州市长岗镇农村人居环境综合整治 | D75: 1000

Sheet 35.全市专项债券安排使用表
A1: 2022年全市专项债券项目情况表
D3: 单位：万元
A4: 序号 | B4: 项目单位 | C4: 项目名称 | D4: 债券资金到位额度
A5: 全市合计（53个） | D5: =XFD6+XFD16+XFD30+XFD44+XFD47 -> 346200
A6: 市本级小计（9个） | D6: =SUM(XFD7:XFD15) -> 74000
A7: 1 | B7: 市建投公司 | C7: 擂鼓墩小区等老旧小区配套道路设施建设 （博物馆南路） | D7: 900
A8: 2 | B8: 市建投公司 | C8: 欧阳修小区等老旧小区配套道路设施建设 （清河路） | D8: 1000
A9: 3 | B9: 市建投公司 | C9: 草店子城市综合体建设 | D9: 4000
A10: 4 | B10: 市建投公司 | C10: 飞灰填埋场 | D10: 4600
A11: 5 | B11: 市草甸子文旅发展有限公司 | C11: 草甸子街历史文化街区保护改造 | D11: 40000
A12: 6 | B12: 市住建局 | C12: 老城区污水收集管网建设 | D12: 5000
A13: 7 | B13: 市水务集团 | C13: 城南新区供水管网配套设施建设 | D13: 6500
A14: 8 | B14: 市水务集团 | C14: 老城区供水管网改造 | D14: 10000
A15: 9 | B15: 市城投公司 | C15: 城南新区棚户区改造（涢水南片） （7至12号楼） | D15: 2000
A16: 随县小计（13个） | D16: =SUM(XFD17:XFD29) -> 78000
A17: 10 | B17: 县城投公司 | C17: 楚北公铁联运物流中心核心启动区及配套公共基础设施建设 （一期工程） | D17: 20000
A18: 11 | B18: 县城投公司 | C18: 随县城区2016年第一批棚户区改造 （一期工程） | D18: 10000
A19: 12 | B19: 县殡仪馆 | C19: 随县殡仪馆福利设施建设 | D19: 3000
A20: 13 | B20: 县城投公司 | C20: 随县城市综合服务中心建设项目 | D20: 5000
A21: 14 | B21: 县城投公司 | C21: 随县㵐水河水生态综合治理项目 | D21: 10000
A22: 15 | B22: 县城投公司 | C22: 随县城市综合服务中心 | D22: 5000
A23: 16 | B23: 随县第二高级中学 | C23: 随县高中迁建项目 | D23: 10000
A24: 17 | B24: 随县洪山医院 | C24: 随县洪山医院门诊综合楼、医技楼建设项目 | D24: 1000
A25: 18 | B25: 随县三里岗镇中心卫生院 | C25: 随县三里岗镇中心卫生院整体搬迁建设项目 | D25: 1100
A26: 19 | B26: 随县人民医院 | C26: 随县人民医院二期建设 | D26: 3300
A27: 20 | B27: 随县产业发展服务中心 | C27: 随县香菇产业园一期博览园项目 | D27: 1500
A28: 21 | B28: 随县经济开发区管理委员会 | C28: 随县经济开发区农产品产业园项目 | D28: 7100
A29: 22 | B29: 随县小林镇人民政府 | C29: 小林火车站鄂豫物流工业园 | D29: 1000
A30: 曾都区小计（13个） | D30: =SUM(XFD31:XFD43) -> 89700
A31: 23 | B31: 市住建局 | C31: 污泥无害化处理厂 | D31: 4000
A32: 24 | B32: 市建投公司 | C32: 随州市欧阳修小区等老旧小区配套道路设施建设项目（清河路至桃园路） | D32: 4000
A33: 25 | B33: 市建投公司 | C33: 随州市明珠花园等老旧小区配套道路设施建设项目（青年路—明珠路） | D33: 3600
A34: 26 | B34: 市建投公司 | C34: 随州市擂鼓墩小区等老旧小区配套道路设施建设项目（博物馆南路-青年西路） | D34: 3600
A35: 27 | B35: 市建投公司 | C35: 草店子棚改安置房建设项目 | D35: 4000
A36: 28 | B36: 市建投公司 | C36: 随州市草店子城市综合体建设项目 | D36: 16000
A37: 29 | B37: 区城市投资 公司 | C37: 曾都区太山庙棚户区改造二期 | D37: 9700
A38: 30 | B38: 曾都医院 | C38: 随州市曾都医院门诊综合楼 项目 | D38: 3800
A39: 31 | B39: 曾都区北郊卫生院 | C39: 曾都区北郊卫生院 曾都经济开发区分院 | D39: 7000
A40: 32 | B40: 南郊办事处 | C40: 高新技术开发区曾都园区南郊创业孵化园 | D40: 12000
A41: 33 | B41: 北郊办事处 | C41: 高新技术开发区曾都园区 北郊创业孵化园建设工程 | D41: 4000
A42: 34 | B42: 湖北随安应急装备检测有限公司 | C42: 随州市曾都区万店镇乡村振兴及产城融合建设项目(一期） | D42: 15000
A43: 35 | B43: 东城办事处 | C43: 随州市文峰润福养老中心 | D43: 3000
A44: 高新区小计（2个） | D44: =SUM(XFD45:XFD46) -> 16000
A45: 36 | B45: 随州华盛产业开发有限公司 | C45: 高新区望城岗安置房建设 | D45: 8000
A46: 37 | B46: 随州华誉高新技术产业开发有限公司 | C46: 高新区裕民社区棚户区改造 | D46: 8000
A47: 广水市小计（16个） | D47: =SUM(XFD48:XFD63) -> 88500
A48: 38 | B48: 广水市创新创业投资有限公司 | C48: 广水市化工园区配套基础设施建设项目 | D48: 22000
A49: 39 | B49: 广水市白泉卫生院 | C49: 广水市白泉卫生院整体搬迁项目 | D49: 4000
A50: 40 | B50: 广水市骆店卫生院 | C50: 广水市骆店镇卫生院整体搬迁项目 | D50: 2000
A51: 41 | B51: 广水市长岭卫生院 | C51: 广水市长岭镇中心卫生院整体搬迁项目 | D51: 3000
A52: 42 | B52: 广水市水利和湖泊局 | C52: 广水市农村供水提档升级工程项目 | D52: 10000
A53: 43 | B53: 广水市郝店中心卫生院 | C53: 广水市郝店镇中心卫生院建设项目 | D53: 3000
A54: 44 | B54: 广水市交通局 | C54: 广水市北门综合客运站项目 | D54: 3500
A55: 45 | B55: 广水市住建局 | C55: 广水市应山东大、督察巷农副产品交易市场提档升级改造工程项目 | D55: 2000
A56: 46 | B56: 广水市民政局 | C56: 广水市公益性公墓建设项目 | D56: 6000
A57: 47 | B57: 广水市水利局 | C57: 广水市农村饮水安全中线飞沙河水厂改扩建及管网延伸工程 | D57: 6000
A58: 48 | B58: 广水市绿色生态有限公司 | C58: 广水市杨涟故居整修 及配套文旅建设项目 | D58: 3000
A59: 49 | B59: 印台医院 | C59: 印台医院整体搬迁项目 | D59: 5000
A60: 50 | B60: 广水市水利和湖泊局 | C60: 广水市农村饮水安全东线霞家河水厂改扩建及管网延伸工程 | D60: 3000
A61: 51 | B61: 广水市创新创业投资有限公司 | C61: 中国风谷产业园配套基础设施（一期）项目 | D61: 3000
A62: 52 | B62: 广水市文化旅游产业投资有限公司 | C62: 广水市应山城区飞沙河水厂（三水厂）扩建工程项目 | D62: 5000
A63: 53 | B63: 广水市第一人民医院 | C63: 广水市第一人民医院肿瘤、精神病、老年病专科综合大楼 | D63: 8000
